Workbook

Sheet DISCLAIMER
J44: REFERENCES
J46: "McMillan On Options" by Lawrence G. McMillan
I47: "Options as a Strategic Investment" by Lawrence G. McMillan
J48: "High Probability Trading" by Marcel Link
K49: "Real Money" by Jim Cramer
I51: No assumption should be made that any of the persons above
K52: endorsed this product.

Sheet WORKSHEET
A1: 3 Month High Volatility | B1: 0 | E1: T= Theoritical | I1: HOW TO SET UP POSITIONS
A2: Opening Volatility | B2: 0 | I2: ENTER ONLY YELLOW
A3: Stock Opening Price | B3: 67.72
A4: Initial Option Time (Days) | B4: =J38 -> 237 | D4: OPTIONS | H4: SC= Sold Call
A5: JAN | C5: +QQQRM | D5: A | H5: SP =Sold Put
A6: Enter Initial Option Time | B6: 237 | D6: =D12+B10-B7-(B9*B10*(B6/365)) -> 4.293832161 | E6: T PUT price | K6: IF OPTION PRICE>$1.00 | L6: =B3*K7 -> 0
A7: Enter Current Stock Price | B7: 67.72 | C7: =B7+1 -> 68.72 | D7: =((B7*D9)-(((B10*EXP((-B9*(B6/365)))*NORMSDIST(B13)))))-((B7*D9)-(((B10*EXP((-B9*((B6-1)/365)))*NORMSDIST(B13))))) -> 0.000432970167 | E7: THETA | H7: Enter Shares of Stock | K7: 0 | L7: =B7-B3 -> 0
A8: Enter Implied Volitility | B8: 0.196 | C8: =B8+0.01 -> 0.206 | D8: =1-D9 -> 0.4707441673 | E8: PUT DELTA | H8: Enter Number of Contracts (Option A) | K8: 1 | L8: =IF((K8>0),IF(J9="PUT",(D6*(K8*100)), IF(J9="SP",(-D6*(K8*100)),IF(J9="SC", (-D12*(K8*100)),(D12*(K8*100))))),0) -> 423.4599284
A9: Enter Risk free interest rate | B9: 0.005 | C9: =(LN(B7/B10) + (B9 + C8 * C8/2)* (B6/365))/((C8 * SQRT(B6/365))) -> 0.07769870121 | D9: =NORMSDIST(B12) -> 0.5292558327 | E9: CALL DELTA | H9: Enter Put / Call | J9: CALL | K9: =IF(J9="PUT",D8, IF(J9="SP",-D8,IF(J9="SC", -D9,D9))) -> 0.5292558327 | L9: =I41-(K7*B3) -> 4000 | M9: Enter Slippage A | N9: 0
A10: Enter Strike Price | B10: 68 | C10: =B12-((C8*SQRT(B6/365))) -> -0.09259563225 | D10: =1-(ABS(B12-NORMSDIST(C12))) -> 0.5073939814 | E10: GAMMA | L10: =IF(L9>0,0,L9) -> 0
D11: =ABS(D12-D13) -> 0.2170362468 | E11: VEGA | H11: Enter Number of Contracts (Option B) | K11: 1 | L11: =IF((K11>0),IF(J12="PUT",(D20*(K11*100)), IF(J12="SP",(-D20*(K11*100)),IF(J12="SC", (-D26*(K11*100)),(D26*(K11*100))))),0) -> -91.04002133
B12: =(LN(B7/B10) + (B9 + B8 * B8/2)* (B6/365))/((B8 * SQRT(B6/365))) -> 0.07339935034 | C12: =(LN(C7/B10) + (B9 + B8 * B8/2)* (B6/365))/((B8 * SQRT(B6/365))) -> 0.1662130852 | D12: =((B7*D9)-(((B10*EXP((-B9*(B6/365)))*NORMSDIST(B13))))) -> 4.234599284 | E12: T CALL price | H12: Enter Put / Call | J12: SC | K12: =IF(J12="PUT",D22, IF(J12="SP",-D22,IF(J12="SC", -D23,D23))) -> -0.4680051055 | M12: Enter Slippage B | N12: 0
B13: =B12-((B8*SQRT(B6/365))) -> -0.08453762339 | D13: =((B7*D9)-(((B10*EXP((-B9*(B6/365)))*NORMSDIST(C10))))) -> 4.451635531
A14: Risk Free IR | H14: Enter Number of Contracts (Option C) | K14: 0 | L14: =IF((K14>0),IF(J15="PUT",(D32*(K14*100)),IF(J15="SP",(-D32*(K14*100)),IF(J15="SC",(-D38*(K14*100)),(D38*(K14*100))))),0) -> 0
A15: 2008-10-29 | H15: Enter Put / Call | J15: PUT | K15: =IF(J15="PUT",D34, IF(J15="SP",-D34,IF(J15="SC", -D35,D35))) -> 0 | M15: Enter Slippage C | N15: 0.1
A16: 3 Month Treasury Bills
H17: Enter Number of Contracts (Option D) | K17: 0 | L17: =IF((K17>0),IF(J18="PUT",(D42*(K17*100)), IF(J18="SP",(-D42*(K17*100)),IF(J18="SC", (-D48*(K17*100)),(D48*(K17*100))))),0) -> 0
H18: Enter Put / Call | J18: PUT | K18: =IF(J18="PUT",D44, IF(J18="SP",-D44,IF(J18="SC", -D45,D45))) -> 0 | M18: Enter Slippage D | N18: 0
A19: MAY | C19: +QQQFU | D19: B
A20: Initial Option Time | B20: 24 | D20: =D26+B24-B21-(B23*B24*(B20/365)) -> 1.168044049 | E20: T PUT price | H20: Enter BETA | I20: 0
B21: =B7 -> 67.72 | C21: =B21+1 -> 68.72 | D21: =((B21*D23)-(((B24*EXP((-B23*(B20/365)))*NORMSDIST(B27)))))-((B21*D23)-(((B24*EXP((-B23*((B20-1)/365)))*NORMSDIST(B27))))) -> 0.0004216865256 | E21: THETA | H21: Enter STD | I21: 0 | M21: =THEPLOTTER!$I$46+EXPIRATION!$I$38+I47 -> -177.16
A22: Enter Implied Volitility | B22: 0.149 | C22: =B22+0.01 -> 0.159 | D22: =1-D23 -> 0.5319948945 | E22: PUT DELTA | H22: Enter ATR | I22: 6 | L22: =SUM(L8:L17)+(L7*K7) -> 4332.419907 | M22: =(L22*-1)-I47 -> -4320.929907
B23: =B9 -> 0.005 | C23: =(LN(B21/B24) + (B23 + C22 * C22/2)* (B20/365))/((C22 * SQRT(B20/365))) -> -0.0727524667 | D23: =NORMSDIST(B26) -> 0.4680051055 | E23: CALL DELTA | H23: Enter Total Stock | I23: 0 | K23: TIME | M23: Enter Commission Fees
A24: Enter Strike | B24: 68 | C24: =B26-((C22*SQRT(B20/365))) -> -0.1210569387 | D24: =1-(ABS(B26-NORMSDIST(C26))) -> 0.3005153804 | E24: GAMMA | H24: Buying Power | I24: 2.95 | K24: on | L24: =L22 -> 4332.419907 | M24: STOCK BASE | N24: 9.99
D25: =ABS(D26-D27) -> 0.06904306655 | E25: VEGA | H25: =(I24* (I41+EXPIRATION!$I$36)) -> 11311.2735 | I25: =IF(H25<=0,H26,I24*(I41+EXPIRATION!$I$36)) -> 11311.2735 | M25: OPTION BASE: | N25: 9.99
B26: =(LN(B21/B24) + (B23 + B22 * B22/2)* (B20/365))/((B22 * SQRT(B20/365))) -> -0.08028547407 | C26: =(LN(C21/B24) + (B23 + B22 * B22/2)* (B20/365))/((B22 * SQRT(B20/365))) -> 0.303378132 | D26: =((B21*D23)-(((B24*EXP((-B23*(B20/365)))*NORMSDIST(B27))))) -> 0.9104002133 | E26: T CALL price | H26: =I24*I41 -> 11800 | I26: A | J26: OFF | K26: =IF(J26="ON",IF(B6>0.9,(B6-H27),0.00001),0.0001) -> 0.0001 | M26: PER CONTRACT: | N26: 0.75
B27: =B26-((B22*SQRT(B20/365))) -> -0.1184926957 | D27: =((B21*D23)-(((B24*EXP((-B23*(B20/365)))*NORMSDIST(C24))))) -> 0.9794432798 | H27: =MIN(IF(B6>0.9,B6,1000), IF(B20>0.9,B20,1000), IF(B31>0.9,B31,1000), IF(B41>0.9,B41,1000)) -> 24 | I27: B | J27: OFF | K27: =IF(J27="ON",IF(B20>0.9,(B20-H27),0.00001),0.0001) -> 0.0001 | L27: PROFIT / LOSS | N27: =SUM(K8+K11+K14+K17) -> 2
I28: C | J28: OFF | K28: =IF(J28="ON",IF(B31>0.9,(B31-H27),0.00001),0.0001) -> 0.0001 | L28: =L22-L24+(SUM(L29:L33)) -> 0 | N28: =IF((K8>0),1,0) -> 1
I29: D | J29: OFF | K29: =IF(J29="ON",IF(B41>0.9,(B41-H27),0.00001),0.0001) -> 0.0001 | N29: =IF((K11>0),1,0) -> 1
A30: JAN | C30: +QQQQQ | D30: C | G30: =ABS(THEPLOTTER!$I$46+WORKSHEET!$I$47)/EXPIRATION!$I$41 -> 0.003114386623 | N30: =IF((K14>0),1,0) -> 0
A31: Initial Option Time | B31: 1e-05 | G31: =B6 -> 237 | N31: =IF((K17>0),1,0) -> 0
B32: =B31-(B4-B6) -> 1e-05 | D32: =D38+B36-B33-(B35*B36*(B32/365)) -> 2.13271524e-15 | E32: T PUT price | N32: =IF(SUM(N28:N31)>0,1,0) -> 1
A33: Enter Current Stock Price | B33: 84.6 | C33: =B33+1 -> 85.6 | D33: =((B33*D35)-(((B36*EXP((-B35*(B32/365)))*NORMSDIST(B39)))))-((B33*D35)-(((B36*EXP((-B35*((B32-1)/365)))*NORMSDIST(B39))))) -> 0.000342468099 | E33: THETA | N33: =IF((K7>0),1,0) -> 0
A34: Enter Implied Volitility | B34: 0.26 | C34: =B34+0.01 -> 0.27 | D34: =1-D35 -> 0 | E34: PUT DELTA | L34: =(-L8-L11-L14) -> -332.4199071 | N34: ON
B35: =B9 -> 0.005 | C35: =(LN(B33/B36) + (B35 + C34 * C34/2)* (B32/365))/((C34 * SQRT(B32/365))) -> 27277.6652 | D35: =NORMSDIST(B38) -> 1 | E35: CALL DELTA | N35: OFF
A36: Enter Strike | B36: 25 | C36: =B38-((C34*SQRT(B32/365))) -> 28326.80613 | D36: =1-(ABS(B38-NORMSDIST(C38))) -> -28324.80617 | E36: GAMMA | N36: =IF(I37="June",DATEDIF(TODAY(),"2011/6/20","d"),IF(I37="Jul",DATEDIF(TODAY(),"2008/7/20","d"),IF(I37="Aug",DATEDIF(TODAY(),"2007/8/20","d"),IF(I37="Sep",DATEDIF(TODAY(),"2012/9/20","d"),IF(I37="Oct",DATEDIF(TODAY(),"2011/10/22","d"),IF(I37="Nov",DATEDIF(TODAY(),"2009/11/22","d"), )))))) -> 237
D37: =ABS(D38-D39) -> 0 | E37: VEGA | I37: SEP | M37: BID | N37: ASK
B38: =(LN(B33/B36) + (B35 + B34 * B34/2)* (B32/365))/((B34 * SQRT(B32/365))) -> 28326.80617 | C38: =(LN(C33/B36) + (B35 + B34 * B34/2)* (B32/365))/((B34 * SQRT(B32/365))) -> 28599.86016 | D38: =((B33*D35)-(((B36*EXP((-B35*(B32/365)))*NORMSDIST(B39))))) -> 59.6 | E38: T CALL price | H38: =IF(K8>0, ((K8*D12)*100)*IF(J9="SC",0,IF(J9="CALL",1,IF(J9="SP",0,(((K8*D6)*100))/((K8*D12)*100)))),0) -> 423.4599284 | I38: CALC TIME TO EXPIRATION | J38: =IF(I37="Jan",DATEDIF(TODAY(),"2012/1/20","d"),IF(I37="Feb",DATEDIF(TODAY(),"2012/2/20","d"),IF(I37="Mar",DATEDIF(TODAY(),"2009/3/22","d"),IF(I37="Apr",DATEDIF(TODAY(),"2009/4/20","d"),IF(I37="May",DATEDIF(TODAY(),"2011/5/20","d"),IF(I37="Dec",DATEDIF(TODAY(),"2008/12/31","d"),N36 )))))) -> 237 | L38: Sell To Open | M38: 1.94 | N38: 1.97
B39: =B38-((B34*SQRT(B32/365))) -> 28326.80613 | D39: =((B33*D35)-(((B36*EXP((-B35*(B32/365)))*NORMSDIST(C36))))) -> 59.6 | H39: =IF(K11>0, ((K11*D26)*100)*IF(J12="SC",0,IF(J12="CALL",1,IF(J12="SP",0,(((K11*D20)*100))/((K11*D26)*100)))),0) -> 0 | L39: Buy To Open | M39: 16.93 | N39: 16.94
A40: JAN | C40: +QQQQQ | D40: D | H40: =IF(K14>0,((K14*D38)*100)*IF(J15="SC",0,IF(J15="CALL",1,IF(J15="SP",0,(((K14*D32)*100))/((K14*D38)*100)))),0) -> 0 | I40: ENTER AVAIL RISK CAPITAL
A41: Initial Option Time | B41: 1e-05 | H41: =IF(K17>0, ((K17*D48)*100)*IF(J18="SC",0,IF(J18="CALL",1,IF(J18="SP",0,(((K17*D42)*100))/((K17*D48)*100)))),0) -> 0 | I41: 4000 | L41: Sell To Close | M41: 0 | N41: 0
B42: =B41-(B4-B6) -> 1e-05 | D42: =D48+B46-B43-(B45*B46*(B42/365)) -> 2.13271524e-15 | E42: T PUT price | H42: =((EXP(B9*(B4/360))-0.8)/(1.2-0.8)) -> 0.5082427254 | L42: Buy To Close | M42: 0 | N42: 0
B43: =B33 -> 84.6 | C43: =B43+1 -> 85.6 | D43: =((B43*D45)-(((B46*EXP((-B45*(B42/365)))*NORMSDIST(B49)))))-((B43*D45)-(((B46*EXP((-B45*((B42-1)/365)))*NORMSDIST(B49))))) -> 0.000342468099 | E43: THETA | I43: ENTER TOTAL CAPITAL
A44: Enter Implied Volitility | B44: 0.62 | C44: =B44+0.01 -> 0.63 | D44: =1-D45 -> 0 | E44: PUT DELTA | I44: 4000 | M44: Optimal Price
B45: =B9 -> 0.005 | C45: =(LN(B43/B46) + (B45 + C44 * C44/2)* (B42/365))/((C44 * SQRT(B42/365))) -> 11690.42799 | D45: =NORMSDIST(B48) -> 1 | E45: CALL DELTA | I45: =IF((B7=B3),SUM(H38:H41),0) -> 423.4599284 | L45: Scenero A | M45: =M48 -> Debit Spread | N45: =K60 -> 14.98
A46: Enter Strike | B46: 25 | C46: =B48-((C44*SQRT(B42/365))) -> 11878.98317 | D46: =1-(ABS(B48-NORMSDIST(C48))) -> -11876.98328 | E46: GAMMA | I46: COMMISSIONS PAID | L46: Scenero B | M46: =M49 -> Debit Spread | N46: =L60 -> 0
D47: =ABS(D48-D49) -> 0 | E47: VEGA | I47: =((N26*N27)+(N32*N25)+(N24*N33))*(-1) -> -11.49 | M47: Market Price
B48: =(LN(B43/B46) + (B45 + B44 * B44/2)* (B42/365))/((B44 * SQRT(B42/365))) -> 11878.98328 | C48: =(LN(C43/B46) + (B45 + B44 * B44/2)* (B42/365))/((B44 * SQRT(B42/365))) -> 11993.48979 | D48: =((B43*D45)-(((B46*EXP((-B45*(B42/365)))*NORMSDIST(B49))))) -> 59.6 | E48: T CALL price | I48: =K7*B3 -> 0 | L48: Scenero A | M48: =IF(M38>M39,"Credit Spread","Debit Spread") -> Debit Spread | N48: =ABS(M38-N39) -> 15
A49: =MIN(B8,B22) -> 0.149 | B49: =B48-((B44*SQRT(B42/365))) -> 11878.98317 | D49: =((B43*D45)-(((B46*EXP((-B45*(B42/365)))*NORMSDIST(C46))))) -> 59.6 | I49: INITIAL STOCK EQUITY | L49: Scenero B | M49: =IF(M41>M42,"Credit Spread","Debit Spread") -> Debit Spread | N49: =ABS(M41-N42) -> 0
L51: THIS PROGRAM IS BASED ON THE
L52: BLACK -SCHOLES OPTION PRICING MODEL
A53: JAN | I53: CALL | L53: CREATED BY PAUL PRIVITERA
A54: FEB | I54: PUT
A55: MAR | I55: SC
A56: APR | I56: SP
A57: MAY
A58: JUNE | K58: =ABS((M38-N38)/2)+M38 -> 1.955 | L58: =ABS((M41-N41)/2)+M41 -> 0
A59: JUL | K59: =ABS((M39-N39)/2)+M39 -> 16.935 | L59: =ABS((M42-N42)/2)+M42 -> 0
A60: AUG | K60: =ABS(K58-K59) -> 14.98 | L60: =ABS(L58-L59) -> 0
A61: SEP
A62: OCT
A63: NOV
A64: DEC

Sheet THEPLOTTER
A1: Range Setting | B1: 24
A2: Increment Setting | B2: 1 | T2: =B7+(B2*8) -> 75.72
A3: Stock Opening Price | B3: =WORKSHEET!$B$3 -> 67.72 | C3: 139.7602081 | U3: Position opening | V3: =B3 -> 67.72
A4: Initial Option Time (Spread) | B4: =WORKSHEET!$B$4 -> 237 | F4: T= Theoritical | H4: SC= Sold Call | U4: Price | X4: GREEKS CALC | Z4: T= Theoritical | AB4: SP= Sold Call | AC4: DELTA NEUTRAL CALCULATOR
A5: FEB | D5: A | H5: SP =Sold Put | V5: 149.5604095 | X5: A | AB5: SC =Sold Put
A6: Enter Initial Option Time | B6: =WORKSHEET!$B$6 -> 237 | D6: =D12+B10-B7-(B9*B10*(B6/365)) -> 4.293832161 | E6: T PUT price | K6: IF OPTION PRICE>$1.00 | U6: AUG | V6: =B6 -> 237 | X6: =X12+V10-V7-(V9*V10*(V6/365)) -> 5.549042139 | Y6: T PUT price | AE6: IF OPTION PRICE>$1.00
A7: Enter Current Stock Price | B7: =WORKSHEET!$B$7 -> 67.72 | C7: =B7+1 -> 68.72 | D7: =((B7*D9)-(((B10*EXP((-B9*(B6/365)))*NORMSDIST(B13)))))-((B7*D9)-(((B10*EXP((-B9*((B6-1)/365)))*NORMSDIST(B13))))) -> 0.000432970167 | E7: THETA | H7: Enter Shares of Stock | K7: =WORKSHEET!$K$7 -> 0 | L7: =B7-B3 -> 0 | T7: 79.24000549 | U7: Enter Current Stock Price | V7: 65.29000092 | W7: =V7+1 -> 66.29000092 | X7: =((V7*X9)-(((V10*EXP((-V9*(V6/365)))*NORMSDIST(V13)))))-((V7*X9)-(((V10*EXP((-V9*((V6-1)/365)))*NORMSDIST(V13))))) -> 0.0003491456833 | Y7: THETA | AB7: Enter Shares of Stock | AE7: =K7 -> 0 | AF7: =V7-V3 -> -2.429999084
A8: Enter Implied Volitility | B8: =WORKSHEET!$B$8 -> 0.196 | C8: =B8+0.01 -> 0.206 | D8: =1-D9 -> 0.4707441673 | E8: PUT DELTA | H8: Enter Number of Contracts (Option A) | K8: =WORKSHEET!$K$8 -> 1 | L8: =IF((K8>0),IF(J9="PUT",(D6*(K8*100)), IF(J9="SP",(-D6*(K8*100)),IF(J9="SC", (-D12*(K8*100)),(D12*(K8*100))))),0) -> 423.4599284 | U8: Enter Implied Volitility | V8: =B8 -> 0.196 | W8: =V8+0.01 -> 0.206 | X8: =1-X9 -> 0.5627619837 | Y8: PUT DELTA | AB8: Enter Number of Contracts (Option A) | AE8: =K8 -> 1 | AF8: =IF((AE8>0),IF(AD9="PUT",(X6*(AE8*100)), IF(AD9="SP",(-X6*(AE8*100)),IF(AD9="SC", (-X12*(AE8*100)),(X12*(AE8*100))))),0) -> 305.9810177
A9: Enter Risk free interest rate | B9: =WORKSHEET!$B$9 -> 0.005 | C9: =(LN(B7/B10) + (B9 + C8 * C8/2)* (B6/365))/((C8 * SQRT(B6/365))) -> 0.07769870121 | D9: =NORMSDIST(B12) -> 0.5292558327 | E9: CALL DELTA | H9: Enter Put / Call | J9: =WORKSHEET!$J$9 -> CALL | K9: =IF(J9="PUT",D8, IF(J9="SP",-D8,IF(J9="SC", -D9,D9))) -> 0.5292558327 | L9: =IF(D6<0.25,0.05,(D6+(WORKSHEET!$N$9))) -> 4.293832161 | M9: =IF(L9>0,L9-D6,0) -> 0 | N9: =M9*(K8*100) -> 0 | O9: =IF(J9="PUT",N9, IF(J9="SP",N9,IF(J9="SC", N10,N10))) -> 0 | U9: Enter Risk free interest rate | V9: =B9 -> 0.005 | W9: =(LN(V7/V10) + (V9 + W8 * W8/2)* (V6/365))/((W8 * SQRT(V6/365))) -> -0.1424444469 | X9: =NORMSDIST(V12) -> 0.4372380163 | Y9: CALL DELTA | AB9: Enter Put / Call | AD9: =J9 -> CALL | AE9: =IF(AD9="PUT",X8, IF(AD9="SP",-X8,IF(AD9="SC", -X9,X9))) -> 0.4372380163
A10: Enter Strike Price | B10: =WORKSHEET!$B$10 -> 68 | C10: =B12-((C8*SQRT(B6/365))) -> -0.09259563225 | D10: =1-(ABS(B12-NORMSDIST(C12))) -> 0.5073939814 | E10: GAMMA | L10: =IF(D12<0.25,0.05,(D12+(WORKSHEET!$N$9))) -> 4.234599284 | M10: =IF(L10>0,(L10-D12),0) -> 0 | N10: =M10*(K8*100) -> 0 | U10: Enter Strike Price | V10: =B10 -> 68 | W10: =V12-((W8*SQRT(V6/365))) -> -0.3239705737 | X10: =1-(ABS(V12-NORMSDIST(W12))) -> 0.3666369128 | Y10: GAMMA
D11: =ABS(D12-D13) -> 0.2170362468 | E11: VEGA | H11: Enter Number of Contracts (Option B) | K11: =WORKSHEET!$K$11 -> 1 | L11: =IF((K11>0),IF(J12="PUT",(D20*(K11*100)), IF(J12="SP",(-D20*(K11*100)),IF(J12="SC", (-D26*(K11*100)),(D26*(K11*100))))),0) -> -91.04002133 | X11: =ABS(X12-X13) -> 0.2070179182 | Y11: VEGA | AB11: Enter Number of Contracts (Option B) | AE11: =K11 -> 1 | AF11: =IF((AE11>0),IF(AD12="PUT",(X20*(AE11*100)), IF(AD12="SP",(-X20*(AE11*100)),IF(AD12="SC", (-X26*(AE11*100)),(X26*(AE11*100))))),0) -> -19.04453289
B12: =(LN(B7/B10) + (B9 + B8 * B8/2)* (B6/365))/((B8 * SQRT(B6/365))) -> 0.07339935034 | C12: =(LN(C7/B10) + (B9 + B8 * B8/2)* (B6/365))/((B8 * SQRT(B6/365))) -> 0.1662130852 | D12: =((B7*D9)-(((B10*EXP((-B9*(B6/365)))*NORMSDIST(B13))))) -> 4.234599284 | E12: T CALL price | H12: Enter Put / Call | J12: =WORKSHEET!$J$12 -> SC | K12: =IF(J12="PUT",D22, IF(J12="SP",-D22,IF(J12="SC", -D23,D23))) -> -0.4680051055 | L12: =IF(D20<0.25,0.05,(D20+(WORKSHEET!$N$12))) -> 1.168044049 | M12: =IF(L12>0,L12-D20,0) -> 0 | N12: =M12*(K11*100) -> 0 | O12: =IF(J12="PUT",N12, IF(J12="SP",N12,IF(J12="SC", N13,N13))) -> 0 | P12: STRADDLE | R12: ON | V12: =(LN(V7/V10) + (V9 + V8 * V8/2)* (V6/365))/((V8 * SQRT(V6/365))) -> -0.1579755911 | W12: =(LN(W7/V10) + (V9 + V8 * V8/2)* (V6/365))/((V8 * SQRT(V6/365))) -> -0.06173358716 | X12: =((V7*X9)-(((V10*EXP((-V9*(V6/365)))*NORMSDIST(V13))))) -> 3.059810177 | Y12: T CALL price | AB12: Enter Put / Call | AD12: =J12 -> SC | AE12: =IF(AD12="PUT",X22, IF(AD12="SP",-X22,IF(AD12="SC", -X23,X23))) -> -0.1499334759
B13: =B12-((B8*SQRT(B6/365))) -> -0.08453762339 | D13: =((B7*D9)-(((B10*EXP((-B9*(B6/365)))*NORMSDIST(C10))))) -> 4.451635531 | L13: =IF(D26<0.25,0.05,(D26+(WORKSHEET!$N$12))) -> 0.9104002133 | M13: =IF(L13>0,(L13-D26),0) -> 0 | N13: =M13*(K11*100) -> 0 | P13: CALL RATIO BSPD | R13: OFF | V13: =V12-((V8*SQRT(V6/365))) -> -0.3159125648 | X13: =((V7*X9)-(((V10*EXP((-V9*(V6/365)))*NORMSDIST(W10))))) -> 3.266828096
A14: 90 Day Treasury Bills | H14: Enter Number of Contracts (Option C) | K14: =WORKSHEET!$K$14 -> 0 | L14: =IF((K14>0),IF(J15="PUT",(D32*(K14*100)),IF(J15="SP",(-D32*(K14*100)),IF(J15="SC",(-D38*(K14*100)),(D38*(K14*100))))),0) -> 0 | P14: D/C SPREAD | AB14: Enter Number of Contracts (Option C) | AE14: =K14 -> 0 | AF14: =IF((AE14>0),IF(AD15="PUT",(X32*(AE14*100)),IF(AD15="SP",(-X32*(AE14*100)),IF(AD15="SC",(-X38*(AE14*100)),(X38*(AE14*100))))),0) -> 0
H15: Enter Put / Call | J15: =WORKSHEET!$J$15 -> PUT | K15: =IF(J15="PUT",D34, IF(J15="SP",-D34,IF(J15="SC", -D35,D35))) -> 0 | L15: =IF(D32<0.25,0.05,(D32+(WORKSHEET!$N$15))) -> 0.05 | M15: =IF(L15>0,L15-D32,0) -> 0.05 | N15: =M15*(K14*100) -> 0 | O15: =IF(J15="PUT",N15, IF(J15="SP",N15,IF(J15="SC", N16,N16))) -> 0 | P15: STRADDLE / LONG | AB15: Enter Put / Call | AD15: =J15 -> PUT | AE15: =IF(AD15="PUT",X34, IF(AD15="SP",-X34,IF(AD15="SC", -X35,X35))) -> 0
L16: =IF(D38<0.25,0.05,(D38+(WORKSHEET!$N$15))) -> 59.7 | M16: =IF(L16>0,(L16-D38),0) -> 0.1 | N16: =M16*(K14*100) -> 0 | P16: DIAG BTFLY
H17: Enter Number of Contracts (Option D | K17: =WORKSHEET!$K$17 -> 0 | L17: =IF((K17>0),IF(J18="PUT",(D42*(K17*100)), IF(J18="SP",(-D42*(K17*100)),IF(J18="SC", (-D48*(K17*100)),(D48*(K17*100))))),0) -> 0 | P17: BUTTERFLY | AB17: Enter Number of Contracts (Option D | AE17: =K17 -> 0 | AF17: =IF((AE17>0),IF(AD18="PUT",(X42*(AE17*100)), IF(AD18="SP",(-X42*(AE17*100)),IF(AD18="SC", (-X48*(AE17*100)),(X48*(AE17*100))))),0) -> 0
H18: Enter Put / Call | J18: =WORKSHEET!$J$18 -> PUT | K18: =IF(J18="PUT",D44, IF(J18="SP",-D44,IF(J18="SC", -D45,D45))) -> 0 | L18: =IF(D42<0.25,0.05,(D42+(WORKSHEET!$N$18))) -> 0.05 | M18: =IF(L18>0,L18-D42,0) -> 0.05 | N18: =M18*(K17*100) -> 0 | O18: =IF(J18="PUT",N18, IF(J18="SP",N18,IF(J18="SC", N19,N19))) -> 0 | P18: IRON BUTTERFLY | AB18: Enter Put / Call | AD18: =J18 -> PUT | AE18: =IF(AD18="PUT",X44, IF(AD18="SP",-X44,IF(AD18="SC", -X45,X45))) -> 0
A19: FEB | D19: B | L19: =IF(D48<0.25,0.05,(D48+(WORKSHEET!$N$18))) -> 59.6 | M19: =IF(L19>0,(L19-D48),0) -> 0 | N19: =M19*(K17*100) -> 0 | P19: PUT | X19: B | AH19: PUT
A20: Initial Option Time | B20: =WORKSHEET!$B$20 -> 24 | C20: 1900-01-01 | D20: =D26+B24-B21-(B23*B24*(B20/365)) -> 1.168044049 | E20: T PUT price | O20: =SUM(O9:O18) -> 0 | P20: CALL | U20: DEC | V20: =B20 -> 24 | W20: 1900-01-01 | X20: =X26+V24-V21-(V23*V24*(V20/365)) -> 2.878088249 | Y20: T PUT price | AB20: Option | AH20: CALL
B21: =B7 -> 67.72 | C21: =B21+1 -> 68.72 | D21: =((B21*D23)-(((B24*EXP((-B23*(B20/365)))*NORMSDIST(B27)))))-((B21*D23)-(((B24*EXP((-B23*((B20-1)/365)))*NORMSDIST(B27))))) -> 0.0004216865256 | E21: THETA | O21: =O20/I62 -> 0 | P21: SP | V21: =V7 -> 65.29000092 | W21: =V21+1 -> 66.29000092 | X21: =((V21*X23)-(((V24*EXP((-V23*(V20/365)))*NORMSDIST(V27)))))-((V21*X23)-(((V24*EXP((-V23*((V20-1)/365)))*NORMSDIST(V27))))) -> 0.0001314900985 | Y21: THETA | AB21: =(((AE11*100)*AE12)+((AE14*100)*AE15)+((AE17*100)*AE18)+((AE8*100)*AE9)) -> 28.73045405 | AC21: =IF(AB21<0,(ABS(AB21))-AE7,AE7+AB21) -> 28.73045405 | AD21: DELTA | AH21: SP
A22: Enter Implied Volitility | B22: =WORKSHEET!$B$22 -> 0.149 | C22: =B22+0.01 -> 0.159 | D22: =1-D23 -> 0.5319948945 | E22: PUT DELTA | L22: =SUM(L8:L17)+(L7*K7) -> 402.7767828 | P22: SC | V22: =B22 -> 0.149 | W22: =V22+0.01 -> 0.159 | X22: =1-X23 -> 0.8500665241 | Y22: PUT DELTA | AF22: =SUM(AF8:AF17)+(AF7*AE7) -> 286.9364849 | AH22: SC
B23: =B9 -> 0.005 | C23: =(LN(B21/B24) + (B23 + C22 * C22/2)* (B20/365))/((C22 * SQRT(B20/365))) -> -0.0727524667 | D23: =NORMSDIST(B26) -> 0.4680051055 | E23: CALL DELTA | K23: Exp Time Values | V23: =V9 -> 0.005 | W23: =(LN(V21/V24) + (V23 + W22 * W22/2)* (V20/365))/((W22 * SQRT(V20/365))) -> -0.969032705 | X23: =NORMSDIST(V26) -> 0.1499334759 | Y23: CALL DELTA | AC23: DELTA NEUTRAL ADJUSTMENT | AF23: ENTER INITIAL POSITION
A24: Enter Strike | B24: =WORKSHEET!$B$24 -> 68 | C24: =B26-((C22*SQRT(B20/365))) -> -0.1210569387 | D24: =1-(ABS(B26-NORMSDIST(C26))) -> 0.3005153804 | E24: GAMMA | K24: =WORKSHEET!$K$24 -> on | L24: =L22 -> 402.7767828 | U24: Enter Strike | V24: =B24 -> 68 | W24: =V26-((W22*SQRT(V20/365))) -> -1.077490213 | X24: =1-(ABS(V26-NORMSDIST(W26))) -> -0.2981680362 | Y24: GAMMA | AB24: Enter Proposed Number of Contracts | AE24: 10 | AF24: =L24 -> 402.7767828
D25: =ABS(D26-D27) -> 0.06904306655 | E25: VEGA | X25: =ABS(X26-X27) -> 0.03896998955 | Y25: VEGA | AB25: Enter Option Delta | AE25: 0.39
B26: =(LN(B21/B24) + (B23 + B22 * B22/2)* (B20/365))/((B22 * SQRT(B20/365))) -> -0.08028547407 | C26: =(LN(C21/B24) + (B23 + B22 * B22/2)* (B20/365))/((B22 * SQRT(B20/365))) -> 0.303378132 | D26: =((B21*D23)-(((B24*EXP((-B23*(B20/365)))*NORMSDIST(B27))))) -> 0.9104002133 | E26: T CALL price | K26: =WORKSHEET!$K$26 -> 0.0001 | V26: =(LN(V21/V24) + (V23 + V22 * V22/2)* (V20/365))/((V22 * SQRT(V20/365))) -> -1.036718749 | W26: =(LN(W21/V24) + (V23 + V22 * V22/2)* (V20/365))/((V22 * SQRT(V20/365))) -> -0.6388837264 | X26: =((V21*X23)-(((V24*EXP((-V23*(V20/365)))*NORMSDIST(V27))))) -> 0.1904453289 | Y26: T CALL price | AB26: Enter Cost of Option | AE26: 1.85
B27: =B26-((B22*SQRT(B20/365))) -> -0.1184926957 | D27: =((B21*D23)-(((B24*EXP((-B23*(B20/365)))*NORMSDIST(C24))))) -> 0.9794432798 | K27: =WORKSHEET!$K$27 -> 0.0001 | L27: PROFIT / LOSS | V27: =V26-((V22*SQRT(V20/365))) -> -1.07492597 | X27: =((V21*X23)-(((V24*EXP((-V23*(V20/365)))*NORMSDIST(W24))))) -> 0.2294153184 | AC27: =AC21+(((AE24*100)*AE25)) -> 418.730454 | AD27: Final Net Delta | AF27: PROFIT / LOSS
K28: =WORKSHEET!$K$28 -> 0.0001 | L28: =L22-L24 -> 0 | P28: PUT | AC28: =AE26*(AE24*100) -> 1850 | AD28: Cost of Transaction | AF28: =AF22-AF24 -> -115.840298 | AH28: PUT
K29: =WORKSHEET!$K$29 -> 0.0001 | P29: =IF(A18="Jun",DATEDIF(TODAY(),"2003/6/20","d"),IF(A18="July",DATEDIF(TODAY(),"2003/7/20","d"),IF(A18="Aug",DATEDIF(TODAY(),"2003/8/20","d"),IF(A18="Sep",DATEDIF(TODAY(),"2003/9/20","d"),IF(A18="Oct",DATEDIF(TODAY(),"2003/10/20","d"),IF(A18="Nov",DATEDIF(TODAY(),"2003/11/20","d"), )))))) -> 0 | R29: JAN | AF29: =V7 -> 65.29000092 | AH29: =IF(U18="Jun",DATEDIF(TODAY(),"2003/6/20","d"),IF(U18="July",DATEDIF(TODAY(),"2003/7/20","d"),IF(U18="Aug",DATEDIF(TODAY(),"2003/8/20","d"),IF(U18="Sep",DATEDIF(TODAY(),"2003/9/20","d"),IF(U18="Oct",DATEDIF(TODAY(),"2003/10/20","d"),IF(U18="Nov",DATEDIF(TODAY(),"2003/11/20","d"), )))))) -> 0 | AJ29: JAN
A30: JUL | R30: FEB | AJ30: FEB
A31: Initial Option Time | B31: =WORKSHEET!$B$31 -> 1e-05 | D31: C | P31: =IF(A4="Jun",DATEDIF(TODAY(),"2003/6/20","d"),IF(A4="July",DATEDIF(TODAY(),"2003/7/20","d"),IF(A4="Aug",DATEDIF(TODAY(),"2003/8/20","d"),IF(A4="Sep",DATEDIF(TODAY(),"2003/9/20","d"),IF(A4="Oct",DATEDIF(TODAY(),"2003/10/20","d"),IF(A4="Nov",DATEDIF(TODAY(),"2003/11/20","d"), )))))) -> 0 | R31: MAR | X31: C | AH31: =IF(U4="Jun",DATEDIF(TODAY(),"2003/6/20","d"),IF(U4="July",DATEDIF(TODAY(),"2003/7/20","d"),IF(U4="Aug",DATEDIF(TODAY(),"2003/8/20","d"),IF(U4="Sep",DATEDIF(TODAY(),"2003/9/20","d"),IF(U4="Oct",DATEDIF(TODAY(),"2003/10/20","d"),IF(U4="Nov",DATEDIF(TODAY(),"2003/11/20","d"), )))))) -> 0 | AJ31: MAR
B32: =B31-(B4-B6) -> 1e-05 | D32: =D38+B36-B33-(B35*B36*(B32/365)) -> 2.13271524e-15 | E32: T PUT price | R32: APR | U32: JUN | V32: =B32 -> 1e-05 | X32: =X38+V36-V33-(V35*V36*(V32/365)) -> 2.13271524e-15 | Y32: T PUT price | AJ32: APR
A33: Enter Current Stock Price | B33: =WORKSHEET!$B$33 -> 84.6 | C33: =B33+1 -> 85.6 | D33: =((B33*D35)-(((B36*EXP((-B35*(B32/365)))*NORMSDIST(B39)))))-((B33*D35)-(((B36*EXP((-B35*((B32-1)/365)))*NORMSDIST(B39))))) -> 0.000342468099 | E33: THETA | P33: =IF(A31="Jun",DATEDIF(TODAY(),"2003/6/20","d"),IF(A31="July",DATEDIF(TODAY(),"2003/7/20","d"),IF(A31="Aug",DATEDIF(TODAY(),"2003/8/20","d"),IF(A31="Sep",DATEDIF(TODAY(),"2003/9/20","d"),IF(A31="Oct",DATEDIF(TODAY(),"2003/10/20","d"),IF(A31="Nov",DATEDIF(TODAY(),"2003/11/20","d"), )))))) -> 0 | R33: MAY | V33: =V7 -> 65.29000092 | W33: =V33+1 -> 66.29000092 | X33: =((V33*X35)-(((V36*EXP((-V35*(V32/365)))*NORMSDIST(V39)))))-((V33*X35)-(((V36*EXP((-V35*((V32-1)/365)))*NORMSDIST(V39))))) -> 0.000342468099 | Y33: THETA | AH33: =IF(U31="Jun",DATEDIF(TODAY(),"2003/6/20","d"),IF(U31="July",DATEDIF(TODAY(),"2003/7/20","d"),IF(U31="Aug",DATEDIF(TODAY(),"2003/8/20","d"),IF(U31="Sep",DATEDIF(TODAY(),"2003/9/20","d"),IF(U31="Oct",DATEDIF(TODAY(),"2003/10/20","d"),IF(U31="Nov",DATEDIF(TODAY(),"2003/11/20","d"), )))))) -> 0 | AJ33: MAY
A34: Enter Implied Volitility | B34: =WORKSHEET!$B$34 -> 0.26 | C34: =B34+0.01 -> 0.27 | D34: =1-D35 -> 0 | E34: PUT DELTA | H34: time bo | K34: 2002.6 | R34: JUN | V34: =B34 -> 0.26 | W34: =V34+0.01 -> 0.27 | X34: =1-X35 -> 0 | Y34: PUT DELTA | AJ34: JUN
B35: =B9 -> 0.005 | C35: =(LN(B33/B36) + (B35 + C34 * C34/2)* (B32/365))/((C34 * SQRT(B32/365))) -> 27277.6652 | D35: =NORMSDIST(B38) -> 1 | E35: CALL DELTA | K35: 1898.15 | P35: =IF(I37="Jun",DATEDIF(TODAY(),"2004/6/20","d"),IF(I37="Jul",DATEDIF(TODAY(),"2004/7/20","d"),IF(I37="Aug",DATEDIF(TODAY(),"2005/8/20","d"),IF(I37="Sep",DATEDIF(TODAY(),"2005/9/20","d"),IF(I37="Oct",DATEDIF(TODAY(),"2003/10/20","d"),IF(I37="Nov",DATEDIF(TODAY(),"2003/11/20","d"), )))))) -> 0 | R35: JUL | V35: =V9 -> 0.005 | W35: =(LN(V33/V36) + (V35 + W34 * W34/2)* (V32/365))/((W34 * SQRT(V32/365))) -> 21480.1444 | X35: =NORMSDIST(V38) -> 1 | Y35: CALL DELTA | AH35: =IF(AC37="Jun",DATEDIF(TODAY(),"2003/6/20","d"),IF(AC37="Jul",DATEDIF(TODAY(),"2003/7/20","d"),IF(AC37="Aug",DATEDIF(TODAY(),"2003/8/20","d"),IF(AC37="Sep",DATEDIF(TODAY(),"2003/9/20","d"),IF(AC37="Oct",DATEDIF(TODAY(),"2003/10/20","d"),IF(AC37="Nov",DATEDIF(TODAY(),"2003/11/20","d"), )))))) ->  | AJ35: JUL
A36: Enter Strike | B36: =WORKSHEET!$B$36 -> 25 | C36: =B38-((C34*SQRT(B32/365))) -> 28326.80613 | D36: =1-(ABS(B38-NORMSDIST(C38))) -> -28324.80617 | E36: GAMMA | K36: DPLOT DATA (CURRENT) | R36: AUG | U36: Enter Strike | V36: =B36 -> 25 | W36: =V38-((W34*SQRT(V32/365))) -> 22306.30375 | X36: =1-(ABS(V38-NORMSDIST(W38))) -> -22304.30379 | Y36: GAMMA | AJ36: AUG
D37: =ABS(D38-D39) -> 0 | E37: VEGA | M37: =MIN($K$37:$K$49) -> 794.51 | P37: =MIN($L$37:$L$49) -> 17.29000092 | R37: SEP | X37: =ABS(X38-X39) -> 0 | Y37: VEGA | AC37: JUL | AJ37: SEP
B38: =(LN(B33/B36) + (B35 + B34 * B34/2)* (B32/365))/((B34 * SQRT(B32/365))) -> 28326.80617 | C38: =(LN(C33/B36) + (B35 + B34 * B34/2)* (B32/365))/((B34 * SQRT(B32/365))) -> 28599.86016 | D38: =((B33*D35)-(((B36*EXP((-B35*(B32/365)))*NORMSDIST(B39))))) -> 59.6 | E38: T CALL price | H38: =IF(K8>0, ((K8*D12)*100)*IF(J9="SC",0,IF(J9="CALL",1,IF(J9="SP",0,(((K8*D6)*100))/((K8*D12)*100)))),0) -> 423.4599284 | M38: =MAX($K$37:$K$49) -> 3784.91 | P38: =MAX($L$37:$L$49) -> 27.29000092 | R38: OCT | V38: =(LN(V33/V36) + (V35 + V34 * V34/2)* (V32/365))/((V34 * SQRT(V32/365))) -> 22306.30379 | W38: =(LN(W33/V36) + (V35 + V34 * V34/2)* (V32/365))/((V34 * SQRT(V32/365))) -> 22659.50449 | X38: =((V33*X35)-(((V36*EXP((-V35*(V32/365)))*NORMSDIST(V39))))) -> 40.29000092 | Y38: T CALL price | AD38: =IF(AC37="Jan",DATEDIF(TODAY(),"2003/1/20","d"),IF(AC37="Feb",DATEDIF(TODAY(),"2003/2/20","d"),IF(AC37="Mar",DATEDIF(TODAY(),"2003/3/20","d"),IF(AC37="Apr",DATEDIF(TODAY(),"2003/4/20","d"),IF(AC37="May",DATEDIF(TODAY(),"2003/5/20","d"),IF(AC37="Dec",DATEDIF(TODAY(),"2003/12/20","d"),AH35 )))))) ->  | AJ38: OCT
B39: =B38-((B34*SQRT(B32/365))) -> 28326.80613 | D39: =((B33*D35)-(((B36*EXP((-B35*(B32/365)))*NORMSDIST(C36))))) -> 59.6 | H39: =IF(K11>0, ((K11*D26)*100)*IF(J12="SC",0,IF(J12="CALL",1,IF(J12="SP",0,(((K11*D20)*100))/((K11*D26)*100)))),0) -> 0 | K39: 3784.91 | L39: 17.29000092 | R39: NOV | V39: =V38-((V34*SQRT(V32/365))) -> 22306.30375 | X39: =((V33*X35)-(((V36*EXP((-V35*(V32/365)))*NORMSDIST(W36))))) -> 40.29000092 | AC39: TODAY | AJ39: NOV
A40: JUL | H40: =IF(K14>0,((K14*D38)*100)*IF(J15="SC",0,IF(J15="CALL",1,IF(J15="SP",0,(((K14*D32)*100))/((K14*D38)*100)))),0) -> 0 | I40: =IF(J40<=0,"EXCELLENT",J40) -> 0.04364965085 | J40: =ABS(J43/I43) -> 0.04364965085 | K40: 3359.92 | L40: 18.29000092 | M40: =MIN(EXPIRATION!$K$36:$K$48) -> -165.67 | P40: =MIN(EXPIRATION!$L$36:$L$48) -> 17.29 | R40: DEC | AC40: 19 DAYS LEFT | AJ40: DEC
A41: Initial Option Time | B41: =WORKSHEET!$B$41 -> 1e-05 | D41: D | H41: =IF(K17>0, ((K17*D48)*100)*IF(J18="SC",0,IF(J18="CALL",1,IF(J18="SP",0,(((K17*D42)*100))/((K17*D48)*100)))),0) -> 0 | I41: INITIAL RISK/REWARD | J41: =MIN($K39:K865) -> -165.21 | K41: 2959.44 | L41: 19.29000092 | M41: =MAX(EXPIRATION!$K$36:$K$48) -> 3689.33 | P41: =MAX(EXPIRATION!$L$36:$L$48) -> 26.29 | X41: D | AC41: 9 DAYS LEFT
B42: =B41-(B4-B6) -> 1e-05 | D42: =D48+B46-B43-(B45*B46*(B42/365)) -> 2.13271524e-15 | E42: T PUT price | H42: =((EXP(B9*(B4/360))-0.8)/(1.2-0.8)) -> 0.5082427254 | J42: =MIN($K65:K839) -> -165.21 | K42: 2586.17 | L42: 20.29000092 | U42: JUN | V42: =B42 -> 1e-05 | X42: =X48+V46-V43-(V45*V46*(V42/365)) -> 2.13271524e-15 | Y42: T PUT price
B43: =B33 -> 84.6 | C43: =B43+1 -> 85.6 | D43: =((B43*D45)-(((B46*EXP((-B45*(B42/365)))*NORMSDIST(B49)))))-((B43*D45)-(((B46*EXP((-B45*((B42-1)/365)))*NORMSDIST(B49))))) -> 0.000342468099 | E43: THETA | I43: =MAX($K39:K839) -> 3784.91 | J43: =MIN($K39:K839) -> -165.21 | K43: 2242 | L43: 21.29000092 | V43: =V7 -> 65.29000092 | W43: =V43+1 -> 66.29000092 | X43: =((V43*X45)-(((V46*EXP((-V45*(V42/365)))*NORMSDIST(V49)))))-((V43*X45)-(((V46*EXP((-V45*((V42-1)/365)))*NORMSDIST(V49))))) -> 0.000342468099 | Y43: THETA
A44: Enter Implied Volitility | B44: =WORKSHEET!$B$44 -> 0.62 | C44: =B44+0.01 -> 0.63 | D44: =1-D45 -> 0 | E44: PUT DELTA | I44: INITIAL PROFIT POTENTIAL | K44: 1927.98 | L44: 22.29000092 | V44: =B44 -> 0.62 | W44: =V44+0.01 -> 0.63 | X44: =1-X45 -> 0 | Y44: PUT DELTA
B45: =B9 -> 0.005 | C45: =(LN(B43/B46) + (B45 + C44 * C44/2)* (B42/365))/((C44 * SQRT(B42/365))) -> 11690.42799 | D45: =NORMSDIST(B48) -> 1 | E45: CALL DELTA | K45: 1644.33 | L45: 23.29000092 | V45: =V9 -> 0.005 | W45: =(LN(V43/V46) + (V45 + W44 * W44/2)* (V42/365))/((W44 * SQRT(V42/365))) -> 9205.776212 | X45: =NORMSDIST(V48) -> 1 | Y45: CALL DELTA
A46: Enter Strike | B46: =WORKSHEET!$B$46 -> 25 | C46: =B48-((C44*SQRT(B42/365))) -> 11878.98317 | D46: =1-(ABS(B48-NORMSDIST(C48))) -> -11876.98328 | E46: GAMMA | I46: =-O20 -> 0 | K46: 1390.51 | L46: 24.29000092 | U46: Enter Strike | V46: =B46 -> 25 | W46: =V48-((W44*SQRT(V42/365))) -> 9354.256368 | X46: =1-(ABS(V48-NORMSDIST(W48))) -> -9352.256472 | Y46: GAMMA | AD46: S
D47: =ABS(D48-D49) -> 0 | E47: VEGA | I47: SLIPPAGE | K47: 1165.39 | L47: 25.29000092 | X47: =ABS(X48-X49) -> 0 | Y47: VEGA
B48: =(LN(B43/B46) + (B45 + B44 * B44/2)* (B42/365))/((B44 * SQRT(B42/365))) -> 11878.98328 | C48: =(LN(C43/B46) + (B45 + B44 * B44/2)* (B42/365))/((B44 * SQRT(B42/365))) -> 11993.48979 | D48: =((B43*D45)-(((B46*EXP((-B45*(B42/365)))*NORMSDIST(B49))))) -> 59.6 | E48: T CALL price | K48: 967.37 | L48: 26.29000092 | V48: =(LN(V43/V46) + (V45 + V44 * V44/2)* (V42/365))/((V44 * SQRT(V42/365))) -> 9354.256472 | W48: =(LN(W43/V46) + (V45 + V44 * V44/2)* (V42/365))/((V44 * SQRT(V42/365))) -> 9502.372894 | X48: =((V43*X45)-(((V46*EXP((-V45*(V42/365)))*NORMSDIST(V49))))) -> 40.29000092 | Y48: T CALL price
B49: =B48-((B44*SQRT(B42/365))) -> 11878.98317 | D49: =((B43*D45)-(((B46*EXP((-B45*(B42/365)))*NORMSDIST(C46))))) -> 59.6 | I49: =WORKSHEET!$I41/WORKSHEET!$I44 -> 1 | K49: 794.51 | L49: 27.29000092 | V49: =V48-((V44*SQRT(V42/365))) -> 9354.25637 | X49: =((V43*X45)-(((V46*EXP((-V45*(V42/365)))*NORMSDIST(W46))))) -> 40.29000092
H50: =SUM(B1*2)/(B2) -> 48 | I50: Risk Capital To Total Capital | K50: 644.67 | L50: 28.29000092
K51: 515.61 | L51: 29.29000092
K52: 405.11 | L52: 30.29000092
K53: 311 | L53: 31.29000092
K54: 231.26 | L54: 32.29000092
K55: 163.98 | L55: 33.29000092
K56: 107.44 | L56: 34.29000092
K57: 60.11 | L57: 35.29000092
K58: 20.62 | L58: 36.29000092
I59: =WORKSHEET!$I$44 -> 4000 | K59: -12.24 | L59: 37.29000092
I60: TOTAL CAPITAL | K60: -39.5 | L60: 38.29000092
I61: =WORKSHEET!$I$41/WORKSHEET!$I$44 -> 1 | K61: -62.06 | L61: 39.29000092
I62: =WORKSHEET!$I$41 -> 4000 | K62: -80.7 | L62: 40.29000092
I63: INITIAL LOSS POTENTIAL | K63: -96.06 | L63: 41.29000092
I64: =J41 -> -165.21 | K64: -108.7 | L64: 42.29000092
K65: -119.08 | L65: 43.29000092
I66: =IF(K100>K75,"DOWNSIDE Risk ","UPSIDE Risk") -> DOWNSIDE Risk | K66: -127.61 | L66: 44.29000092
I67: =IF(K50<K39,"UPSIDE Risk ","DOWNSIDE Risk") -> UPSIDE Risk | K67: -134.59 | L67: 45.29000092
H68: ABS(J41/WORKSHEET!$I$41) | K68: -140.31 | L68: 46.29000092
I69: INITIAL TRADE RISK | K69: -144.98 | L69: 47.29000092
I70: =ABS(I64)/WORKSHEET!I41 -> 0.0413025 | K70: -148.8 | L70: 48.29000092
K71: -151.93 | L71: 49.29000092
K72: -154.48 | L72: 50.29000092
K73: -156.55 | L73: 51.29000092
K74: -158.25 | L74: 52.29000092
K75: -159.63 | L75: 53.29000092
K76: -160.76 | L76: 54.29000092
K77: -161.68 | L77: 55.29000092
K78: -162.43 | L78: 56.29000092
K79: -163.04 | L79: 57.29000092
K80: -163.54 | L80: 58.29000092
K81: -163.94 | L81: 59.29000092
K82: -164.27 | L82: 60.29000092
K83: -164.54 | L83: 61.29000092
K84: -164.76 | L84: 62.29000092
K85: -164.94 | L85: 63.29000092
K86: -165.09 | L86: 64.29000092
K87: -165.21 | L87: 65.29000092

Sheet EXPIRATION
I1: ENTER ONLY YELLOW
A2: Opening Stock Price | B2: =THEPLOTTER!B3 -> 67.72 | S2: Position opening | T2: =B2 -> 67.72
A3: Initial Option Time (Spread) | B3: =THEPLOTTER!B4 -> 237 | D3: GREEKS CALC | F3: T= Theoritical | H3: SC= Sold Call | S3: Price | V3: GREEKS CALC | X3: T= Theoritical | Z3: SP= Sold Call | AA3: DELTA NEUTRAL CALCULATOR
B4: =THEPLOTTER!H32 -> 0 | D4: A | H4: SP =Sold Put | V4: A | Z4: SC =Sold Put
A5: AUG | B5: =IF(WORKSHEET!$K$24="ON",WORKSHEET!$K$26,0.00001) -> 0.0001 | D5: =D11+B9-B6-(B8*B9*(B5/365)) -> 0.2799999068 | E5: T PUT price | K5: IF OPTION PRICE>$1.00 | S5: AUG | T5: =B5 -> 0.0001 | V5: =V11+T9-T6-(T8*T9*(T5/365)) -> 2.709999907 | W5: T PUT price | AC5: IF OPTION PRICE>$1.00
A6: =THEPLOTTER!B1 -> 24 | B6: =THEPLOTTER!B7 -> 67.72 | C6: =B6+1 -> 68.72 | D6: =((B6*D8)-(((B9*EXP((-B8*(B5/365)))*NORMSDIST(B12)))))-((B6*D8)-(((B9*EXP((-B8*((B5-1)/365)))*NORMSDIST(B12))))) -> 0 | E6: THETA | K6: =THEPLOTTER!K7 -> 0 | L6: =B6-B2 -> 0 | S6: Enter Current Stock Price | T6: 65.29 | U6: =T6+1 -> 66.29 | V6: =((T6*V8)-(((T9*EXP((-T8*(T5/365)))*NORMSDIST(T12)))))-((T6*V8)-(((T9*EXP((-T8*((T5-1)/365)))*NORMSDIST(T12))))) -> 0 | W6: THETA | Z6: Enter Shares of Stock | AC6: =K6 -> 0 | AD6: =T6-T2 -> -2.43
A7: =THEPLOTTER!B2 -> 1 | B7: =THEPLOTTER!B8+B4 -> 0.196 | C7: =B7+0.01 -> 0.206 | D7: =1-D8 -> 1 | E7: PUT DELTA | K7: =THEPLOTTER!K8 -> 1 | L7: =IF((K7>0),IF(J8="PUT",(D5*(K7*100)), IF(J8="SP",(-D5*(K7*100)),IF(J8="SC", (-D11*(K7*100)),(D11*(K7*100))))),0) -> 0 | S7: Enter Implied Volitility | T7: =THEPLOTTER!V8 -> 0.196 | U7: =T7+0.01 -> 0.206 | V7: 135.2799988 | W7: PUT DELTA | Z7: Enter Number of Contracts (Option A) | AC7: =K7 -> 1 | AD7: =IF((AC7>0),IF(AB8="PUT",(V5*(AC7*100)), IF(AB8="SP",(-V5*(AC7*100)),IF(AB8="SC", (-V11*(AC7*100)),(V11*(AC7*100))))),0) -> 0
A8: =THEPLOTTER!B7 -> 67.72 | B8: =THEPLOTTER!B9 -> 0.005 | C8: =(LN(B6/B9) + (B8 + C7 * C7/2)* (B5/365))/((C7 * SQRT(B5/365))) -> -38.26689705 | D8: =NORMSDIST(B11) -> 0 | E8: CALL DELTA | J8: =THEPLOTTER!J9 -> CALL | K8: =IF(J8="PUT",D7, IF(J8="SP",-D7,IF(J8="SC", -D8,D8))) -> 0 | S8: Enter Risk free interest rate | T8: =THEPLOTTER!V9 -> 0.005 | U8: =(LN(T6/T9) + (T8 + U7 * U7/2)* (T5/365))/((U7 * SQRT(T5/365))) -> -377.1730959 | V8: =NORMSDIST(T11) -> 0 | W8: CALL DELTA | Z8: Enter Put / Call | AB8: =J8 -> CALL | AC8: =IF(AB8="PUT",V7, IF(AB8="SP",-V7,IF(AB8="SC", -V8,V8))) -> 0
B9: =THEPLOTTER!B10 -> 68 | C9: =B11-((C7*SQRT(B5/365))) -> -40.21940295 | D9: =1-(ABS(B11-NORMSDIST(C11))) -> -40.21929513 | E9: GAMMA | S9: Enter Strike Price | T9: =THEPLOTTER!V10 -> 68 | U9: =T11-((U7*SQRT(T5/365))) -> -396.4167344 | V9: =1-(ABS(T11-NORMSDIST(U11))) -> -395.4166265 | W9: GAMMA
D10: =ABS(D11-D12) -> 0 | E10: VEGA | K10: =THEPLOTTER!K11 -> 1 | L10: =IF((K10>0),IF(J11="PUT",(D19*(K10*100)), IF(J11="SP",(-D19*(K10*100)),IF(J11="SC", (-D25*(K10*100)),(D25*(K10*100))))),0) -> 0 | V10: =ABS(V11-V12) -> 0 | W10: VEGA | Z10: Enter Number of Contracts (Option B) | AC10: =K10 -> 1 | AD10: =IF((AC10>0),IF(AB11="PUT",(V19*(AC10*100)), IF(AB11="SP",(-V19*(AC10*100)),IF(AB11="SC", (-V25*(AC10*100)),(V25*(AC10*100))))),0) -> 0
B11: =(LN(B6/B9) + (B8 + B7 * B7/2)* (B5/365))/((B7 * SQRT(B5/365))) -> -40.21929513 | C11: =(LN(C6/B9) + (B8 + B7 * B7/2)* (B5/365))/((B7 * SQRT(B5/365))) -> 102.6656336 | D11: =((B6*D8)-(((B9*EXP((-B8*(B5/365)))*NORMSDIST(B12))))) -> 0 | E11: T CALL price | J11: =THEPLOTTER!J12 -> SC | K11: =IF(J11="PUT",D21, IF(J11="SP",-D21,IF(J11="SC", -D22,D22))) -> 0 | T11: =(LN(T6/T9) + (T8 + T7 * T7/2)* (T5/365))/((T7 * SQRT(T5/365))) -> -396.4166265 | U11: =(LN(U6/T9) + (T8 + T7 * T7/2)* (T5/365))/((T7 * SQRT(T5/365))) -> -248.2539427 | V11: =((T6*V8)-(((T9*EXP((-T8*(T5/365)))*NORMSDIST(T12))))) -> 0 | W11: T CALL price | Z11: Enter Put / Call | AB11: =J11 -> SC | AC11: =IF(AB11="PUT",V21, IF(AB11="SP",-V21,IF(AB11="SC", -V22,V22))) -> 0
B12: =B11-((B7*SQRT(B5/365))) -> -40.21939772 | D12: =((B6*D8)-(((B9*EXP((-B8*(B5/365)))*NORMSDIST(C9))))) -> 0 | T12: =T11-((T7*SQRT(T5/365))) -> -396.4167291 | V12: =((T6*V8)-(((T9*EXP((-T8*(T5/365)))*NORMSDIST(U9))))) -> 0
K13: =THEPLOTTER!K14 -> 0 | L13: =IF((K13>0),IF(J14="PUT",(D31*(K13*100)),IF(J14="SP",(-D31*(K13*100)),IF(J14="SC",(-D37*(K13*100)),(D37*(K13*100))))),0) -> 0 | Z13: Enter Number of Contracts (Option C) | AC13: =K13 -> 0 | AD13: =IF((AC13>0),IF(AB14="PUT",(V31*(AC13*100)),IF(AB14="SP",(-V31*(AC13*100)),IF(AB14="SC",(-V37*(AC13*100)),(V37*(AC13*100))))),0) -> 0
J14: =THEPLOTTER!J15 -> PUT | K14: =IF(J14="PUT",D33, IF(J14="SP",-D33,IF(J14="SC", -D34,D34))) -> 0 | Z14: Enter Put / Call | AB14: =J14 -> PUT | AC14: =IF(AB14="PUT",V33, IF(AB14="SP",-V33,IF(AB14="SC", -V34,V34))) -> 0
K16: =THEPLOTTER!K17 -> 0 | L16: =IF((K16>0),IF(J17="PUT",(D41*(K16*100)), IF(J17="SP",(-D41*(K16*100)),IF(J17="SC", (-D47*(K16*100)),(D47*(K16*100))))),0) -> 0 | Z16: Enter Number of Contracts (Option D | AC16: =K16 -> 0 | AD16: =IF((AC16>0),IF(AB17="PUT",(V41*(AC16*100)), IF(AB17="SP",(V41*(-AC16*100)),IF(AB17="SC", (-V47*(AC16*100)),(V47*(AC16*100))))),0) -> 0
J17: =THEPLOTTER!J18 -> PUT | K17: =IF(J17="PUT",D43, IF(J17="SP",-D43,IF(J17="SC", -D44,D44))) -> 0 | Z17: Enter Put / Call | AB17: =J17 -> PUT | AC17: =IF(AB17="PUT",V43, IF(AB17="SP",-V43,IF(AB17="SC", -V44,V44))) -> 0
D18: B | N18: PUT | V18: B | AF18: PUT
A19: MAR | B19: =IF(WORKSHEET!K24="ON",WORKSHEET!K27,0.00001) -> 0.0001 | C19: 1900-01-01 | D19: =D25+B23-B20-(B22*B23*(B19/365)) -> 0.2799999068 | E19: T PUT price | N19: CALL | S19: DEC | T19: =B19 -> 0.0001 | U19: 1900-01-01 | V19: =V25+T23-T20-(T22*T23*(T19/365)) -> 2.709999907 | W19: T PUT price | Z19: Option | AF19: CALL
B20: =B6 -> 67.72 | C20: =B20+1 -> 68.72 | D20: =((B20*D22)-(((B23*EXP((-B22*(B19/365)))*NORMSDIST(B26)))))-((B20*D22)-(((B23*EXP((-B22*((B19-1)/365)))*NORMSDIST(B26))))) -> 0 | E20: THETA | N20: SP | T20: =T6 -> 65.29 | U20: =T20+1 -> 66.29 | V20: =((T20*V22)-(((T23*EXP((-T22*(T19/365)))*NORMSDIST(T26)))))-((T20*V22)-(((T23*EXP((-T22*((T19-1)/365)))*NORMSDIST(T26))))) -> 0 | W20: THETA | Z20: =(((AC10*100)*AC11)+((AC13*100)*AC14)+((AC16*100)*AC17)+((AC7*100)*AC8)) -> 0 | AA20: =IF(Z20<0,(ABS(Z20))-AC6,AC6+Z20) -> 0 | AB20: DELTA | AF20: SP
B21: =THEPLOTTER!B22+B4 -> 0.149 | C21: =B21+0.01 -> 0.159 | D21: =1-D22 -> 1 | E21: PUT DELTA | L21: =SUM(L7:L16)+(L6*K6) -> 0 | N21: SC | T21: =B21 -> 0.149 | U21: =T21+0.01 -> 0.159 | V21: =1-V22 -> 1 | W21: PUT DELTA | AD21: =SUM(AD7:AD16)+(AD6*AC6) -> 0 | AF21: SC
B22: =B8 -> 0.005 | C22: =(LN(B20/B23) + (B22 + C21 * C21/2)* (B19/365))/((C21 * SQRT(B19/365))) -> -49.57852379 | D22: =NORMSDIST(B25) -> 0 | E22: CALL DELTA | L22: ENTER INITIAL POSITION | T22: =T8 -> 0.005 | U22: =(LN(T20/T23) + (T22 + U21 * U21/2)* (T19/365))/((U21 * SQRT(T19/365))) -> -488.6645424 | V22: =NORMSDIST(T25) -> 0 | W22: CALL DELTA | AA22: DELTA NEUTRAL ADJUSTMENT | AD22: ENTER INITIAL POSITION
B23: =THEPLOTTER!B24 -> 68 | C23: =B25-((C21*SQRT(B19/365))) -> -52.90603013 | D23: =1-(ABS(B25-NORMSDIST(C25))) -> -52.9059469 | E23: GAMMA | L23: =THEPLOTTER!L24 -> 402.7767828 | S23: Enter Strike | T23: =B23 -> 68 | U23: =T25-((U21*SQRT(T19/365))) -> -521.460909 | V23: =1-(ABS(T25-NORMSDIST(U25))) -> -520.4608258 | W23: GAMMA | Z23: Enter Proposed Number of Contracts | AC23: 10 | AD23: =L23 -> 402.7767828
D24: =ABS(D25-D26) -> 0 | E24: VEGA | V24: =ABS(V25-V26) -> 0 | W24: VEGA | Z24: Enter Option Delta | AC24: 0.39
B25: =(LN(B20/B23) + (B22 + B21 * B21/2)* (B19/365))/((B21 * SQRT(B19/365))) -> -52.9059469 | C25: =(LN(C20/B23) + (B22 + B21 * B21/2)* (B19/365))/((B21 * SQRT(B19/365))) -> 135.0500667 | D25: =((B20*D22)-(((B23*EXP((-B22*(B19/365)))*NORMSDIST(B26))))) -> 0 | E25: T CALL price | T25: =(LN(T20/T23) + (T22 + T21 * T21/2)* (T19/365))/((T21 * SQRT(T19/365))) -> -521.4608258 | U25: =(LN(U20/T23) + (T22 + T21 * T21/2)* (T19/365))/((T21 * SQRT(T19/365))) -> -326.5622619 | V25: =((T20*V22)-(((T23*EXP((-T22*(T19/365)))*NORMSDIST(T26))))) -> 0 | W25: T CALL price | Z25: Enter Cost of Option | AC25: 1.85
B26: =B25-((B21*SQRT(B19/365))) -> -52.90602489 | D26: =((B20*D22)-(((B23*EXP((-B22*(B19/365)))*NORMSDIST(C23))))) -> 0 | L26: PROFIT / LOSS | T26: =T25-((T21*SQRT(T19/365))) -> -521.4609038 | V26: =((T20*V22)-(((T23*EXP((-T22*(T19/365)))*NORMSDIST(U23))))) -> 0 | AA26: =AA20+(((AC23*100)*AC24)) -> 390 | AB26: Final Net Delta | AD26: PROFIT / LOSS
L27: =L21-L23 -> -402.7767828 | N27: PUT | AA27: =AC25*(AC23*100) -> 1850 | AB27: Cost of Transaction | AD27: =AD21-AD23 -> -402.7767828 | AF27: PUT
N28: =IF(A17="Jun",DATEDIF(TODAY(),"2003/6/20","d"),IF(A17="July",DATEDIF(TODAY(),"2003/7/20","d"),IF(A17="Aug",DATEDIF(TODAY(),"2003/8/20","d"),IF(A17="Sep",DATEDIF(TODAY(),"2003/9/20","d"),IF(A17="Oct",DATEDIF(TODAY(),"2003/10/20","d"),IF(A17="Nov",DATEDIF(TODAY(),"2003/11/20","d"), )))))) -> 0 | P28: JAN | AD28: =T6 -> 65.29 | AF28: =IF(S17="Jun",DATEDIF(TODAY(),"2003/6/20","d"),IF(S17="July",DATEDIF(TODAY(),"2003/7/20","d"),IF(S17="Aug",DATEDIF(TODAY(),"2003/8/20","d"),IF(S17="Sep",DATEDIF(TODAY(),"2003/9/20","d"),IF(S17="Oct",DATEDIF(TODAY(),"2003/10/20","d"),IF(S17="Nov",DATEDIF(TODAY(),"2003/11/20","d"), )))))) -> 0 | AH28: JAN
P29: FEB | AH29: FEB
B30: =THEPLOTTER!B31 -> 1e-05 | D30: C | N30: =IF(A3="Jun",DATEDIF(TODAY(),"2003/6/20","d"),IF(A3="July",DATEDIF(TODAY(),"2003/7/20","d"),IF(A3="Aug",DATEDIF(TODAY(),"2003/8/20","d"),IF(A3="Sep",DATEDIF(TODAY(),"2003/9/20","d"),IF(A3="Oct",DATEDIF(TODAY(),"2003/10/20","d"),IF(A3="Nov",DATEDIF(TODAY(),"2003/11/20","d"), )))))) -> 0 | P30: MAR | V30: C | AF30: =IF(S3="Jun",DATEDIF(TODAY(),"2003/6/20","d"),IF(S3="July",DATEDIF(TODAY(),"2003/7/20","d"),IF(S3="Aug",DATEDIF(TODAY(),"2003/8/20","d"),IF(S3="Sep",DATEDIF(TODAY(),"2003/9/20","d"),IF(S3="Oct",DATEDIF(TODAY(),"2003/10/20","d"),IF(S3="Nov",DATEDIF(TODAY(),"2003/11/20","d"), )))))) -> 0 | AH30: MAR
A31: JUN | B31: =IF(WORKSHEET!K24="ON",WORKSHEET!K28,(B30-(B3-B5))) -> 0.0001 | D31: =D37+B35-B32-(B34*B35*(B31/365)) -> -7.094557026e-15 | E31: T PUT price | P31: APR | S31: JUN | T31: =B31 -> 0.0001 | V31: =V37+T35-T32-(T34*T35*(T31/365)) -> 7.116297689e-15 | W31: T PUT price | AH31: APR
B32: =THEPLOTTER!B33 -> 84.6 | C32: =B32+1 -> 85.6 | D32: =((B32*D34)-(((B35*EXP((-B34*(B31/365)))*NORMSDIST(B38)))))-((B32*D34)-(((B35*EXP((-B34*((B31-1)/365)))*NORMSDIST(B38))))) -> 0.0003424680986 | E32: THETA | N32: =IF(A30="Jun",DATEDIF(TODAY(),"2003/6/20","d"),IF(A30="July",DATEDIF(TODAY(),"2003/7/20","d"),IF(A30="Aug",DATEDIF(TODAY(),"2003/8/20","d"),IF(A30="Sep",DATEDIF(TODAY(),"2003/9/20","d"),IF(A30="Oct",DATEDIF(TODAY(),"2003/10/20","d"),IF(A30="Nov",DATEDIF(TODAY(),"2003/11/20","d"), )))))) -> 0 | P32: MAY | T32: =T6 -> 65.29 | U32: =T32+1 -> 66.29 | V32: =((T32*V34)-(((T35*EXP((-T34*(T31/365)))*NORMSDIST(T38)))))-((T32*V34)-(((T35*EXP((-T34*((T31-1)/365)))*NORMSDIST(T38))))) -> 0.0003424680986 | W32: THETA | AF32: =IF(S30="Jun",DATEDIF(TODAY(),"2003/6/20","d"),IF(S30="July",DATEDIF(TODAY(),"2003/7/20","d"),IF(S30="Aug",DATEDIF(TODAY(),"2003/8/20","d"),IF(S30="Sep",DATEDIF(TODAY(),"2003/9/20","d"),IF(S30="Oct",DATEDIF(TODAY(),"2003/10/20","d"),IF(S30="Nov",DATEDIF(TODAY(),"2003/11/20","d"), )))))) -> 0 | AH32: MAY
B33: =THEPLOTTER!B34+B4 -> 0.26 | C33: =B33+0.01 -> 0.27 | D33: =1-D34 -> 0 | E33: PUT DELTA | P33: JUN | T33: =THEPLOTTER!V34 -> 0.26 | U33: =T33+0.01 -> 0.27 | V33: =1-V34 -> 0 | W33: PUT DELTA | AH33: JUN
B34: =B8 -> 0.005 | C34: =(LN(B32/B35) + (B34 + C33 * C33/2)* (B31/365))/((C33 * SQRT(B31/365))) -> 8625.955202 | D34: =NORMSDIST(B37) -> 1 | E34: CALL DELTA | N34: =IF(I36="Jun",DATEDIF(TODAY(),"2003/6/20","d"),IF(I36="Jul",DATEDIF(TODAY(),"2003/7/20","d"),IF(I36="Aug",DATEDIF(TODAY(),"2003/8/20","d"),IF(I36="Sep",DATEDIF(TODAY(),"2003/9/20","d"),IF(I36="Oct",DATEDIF(TODAY(),"2003/10/20","d"),IF(I36="Nov",DATEDIF(TODAY(),"2003/11/20","d"), )))))) -> 0 | P34: JUL | T34: =T8 -> 0.005 | U34: =(LN(T32/T35) + (T34 + U33 * U33/2)* (T31/365))/((U33 * SQRT(T31/365))) -> 6792.618049 | V34: =NORMSDIST(T37) -> 1 | W34: CALL DELTA | AF34: =IF(AA36="Jun",DATEDIF(TODAY(),"2003/6/20","d"),IF(AA36="Jul",DATEDIF(TODAY(),"2003/7/20","d"),IF(AA36="Aug",DATEDIF(TODAY(),"2003/8/20","d"),IF(AA36="Sep",DATEDIF(TODAY(),"2003/9/20","d"),IF(AA36="Oct",DATEDIF(TODAY(),"2003/10/20","d"),IF(AA36="Nov",DATEDIF(TODAY(),"2003/11/20","d"), )))))) ->  | AH34: JUL
B35: =THEPLOTTER!B36 -> 25 | C35: =B37-((C33*SQRT(B31/365))) -> 8957.722563 | D35: =1-(ABS(B37-NORMSDIST(C37))) -> -8955.722704 | E35: GAMMA | K35: DPLOT DATA (EXPIRATION) | P35: AUG | S35: Enter Strike | T35: =B35 -> 25 | U35: =T37-((U33*SQRT(T31/365))) -> 7053.872443 | V35: =1-(ABS(T37-NORMSDIST(U37))) -> -7051.872584 | W35: GAMMA | AH35: AUG
D36: =ABS(D37-D38) -> 0 | E36: VEGA | I36: =I38 + WORKSHEET!$I$23 -> -165.67 | P36: SEP | V36: =ABS(V37-V38) -> 0 | W36: VEGA | AA36: JUL | AH36: SEP
B37: =(LN(B32/B35) + (B34 + B33 * B33/2)* (B31/365))/((B33 * SQRT(B31/365))) -> 8957.722704 | C37: =(LN(C32/B35) + (B34 + B33 * B33/2)* (B31/365))/((B33 * SQRT(B31/365))) -> 9044.069956 | D37: =((B32*D34)-(((B35*EXP((-B34*(B31/365)))*NORMSDIST(B38))))) -> 59.60000003 | E37: T CALL price | P37: OCT | T37: =(LN(T32/T35) + (T34 + T33 * T33/2)* (T31/365))/((T33 * SQRT(T31/365))) -> 7053.872584 | U37: =(LN(U32/T35) + (T34 + T33 * T33/2)* (T31/365))/((T33 * SQRT(T31/365))) -> 7165.564454 | V37: =((T32*V34)-(((T35*EXP((-T34*(T31/365)))*NORMSDIST(T38))))) -> 40.29000003 | W37: T CALL price | AB37: =IF(AA36="Jan",DATEDIF(TODAY(),"2003/1/20","d"),IF(AA36="Feb",DATEDIF(TODAY(),"2003/2/20","d"),IF(AA36="Mar",DATEDIF(TODAY(),"2003/3/20","d"),IF(AA36="Apr",DATEDIF(TODAY(),"2003/4/20","d"),IF(AA36="May",DATEDIF(TODAY(),"2003/5/20","d"),IF(AA36="Dec",DATEDIF(TODAY(),"2003/12/20","d"),AF34 )))))) ->  | AH37: OCT
B38: =B37-((B33*SQRT(B31/365))) -> 8957.722568 | D38: =((B32*D34)-(((B35*EXP((-B34*(B31/365)))*NORMSDIST(C35))))) -> 59.60000003 | I38: =(MIN($K39:K840)) -> -165.67 | P38: NOV | T38: =T37-((T33*SQRT(T31/365))) -> 7053.872448 | V38: =((T32*V34)-(((T35*EXP((-T34*(T31/365)))*NORMSDIST(U35))))) -> 40.29000003 | AA38: TODAY | AH38: NOV
I39: FINAL LOSS POTENTIAL | K39: 3689.33 | L39: 17.29 | P39: DEC | AA39: 19 DAYS LEFT | AH39: DEC
B40: =THEPLOTTER!B41 -> 1e-05 | D40: D | K40: 3189.33 | L40: 18.29 | V40: D | AA40: 9 DAYS LEFT
A41: JUN | B41: =IF(WORKSHEET!K24="ON",WORKSHEET!K29,(B40-(B3-B5))) -> 0.0001 | D41: =D47+B45-B42-(B44*B45*(B41/365)) -> -7.094557026e-15 | E41: T PUT price | H41: =THEPLOTTER!B1 -> 24 | I41: =MAX($K39:K840) -> 3689.33 | K41: 2689.33 | L41: 19.29 | S41: JUN | T41: =B41 -> 0.0001 | V41: =V47+T45-T42-(T44*T45*(T41/365)) -> 7.116297689e-15 | W41: T PUT price
B42: =THEPLOTTER!B33 -> 84.6 | C42: =B42+1 -> 85.6 | D42: =((B42*D44)-(((B45*EXP((-B44*(B41/365)))*NORMSDIST(B48)))))-((B42*D44)-(((B45*EXP((-B44*((B41-1)/365)))*NORMSDIST(B48))))) -> 0.0003424680986 | E42: THETA | I42: MAXIMUM PROFIT POTENTIAL | K42: 2189.33 | L42: 20.29 | T42: =T6 -> 65.29 | U42: =T42+1 -> 66.29 | V42: =((T42*V44)-(((T45*EXP((-T44*(T41/365)))*NORMSDIST(T48)))))-((T42*V44)-(((T45*EXP((-T44*((T41-1)/365)))*NORMSDIST(T48))))) -> 0.0003424680986 | W42: THETA
B43: =THEPLOTTER!B44+B4 -> 0.62 | C43: =B43+0.01 -> 0.63 | D43: =1-D44 -> 0 | E43: PUT DELTA | K43: 1689.33 | L43: 21.29 | T43: =B43 -> 0.62 | U43: =T43+0.01 -> 0.63 | V43: =1-V44 -> 0 | W43: PUT DELTA
B44: =B8 -> 0.005 | C44: =(LN(B42/B45) + (B44 + C43 * C43/2)* (B41/365))/((C43 * SQRT(B41/365))) -> 3696.838078 | D44: =NORMSDIST(B47) -> 1 | E44: CALL DELTA | K44: 1189.33 | L44: 22.29 | T44: =T8 -> 0.005 | U44: =(LN(T42/T45) + (T44 + U43 * U43/2)* (T41/365))/((U43 * SQRT(T41/365))) -> 2911.122156 | V44: =NORMSDIST(T47) -> 1 | W44: CALL DELTA
B45: =THEPLOTTER!B46 -> 25 | C45: =B47-((C43*SQRT(B41/365))) -> 3756.464164 | D45: =1-(ABS(B47-NORMSDIST(C47))) -> -3754.464494 | E45: GAMMA | K45: 689.33 | L45: 23.29 | S45: Enter Strike | T45: =B45 -> 25 | U45: =T47-((U43*SQRT(T41/365))) -> 2958.075404 | V45: =1-(ABS(T47-NORMSDIST(U47))) -> -2956.075734 | W45: GAMMA | AB45: S
D46: =ABS(D47-D48) -> 0 | E46: VEGA | K46: 189.33 | L46: 24.29 | V46: =ABS(V47-V48) -> 0 | W46: VEGA
B47: =(LN(B42/B45) + (B44 + B43 * B43/2)* (B41/365))/((B43 * SQRT(B41/365))) -> 3756.464494 | C47: =(LN(C42/B45) + (B44 + B43 * B43/2)* (B41/365))/((B43 * SQRT(B41/365))) -> 3792.674632 | D47: =((B42*D44)-(((B45*EXP((-B44*(B41/365)))*NORMSDIST(B48))))) -> 59.60000003 | E47: T CALL price | K47: -165.67 | L47: 25.29 | T47: =(LN(T42/T45) + (T44 + T43 * T43/2)* (T41/365))/((T43 * SQRT(T41/365))) -> 2958.075734 | U47: =(LN(U42/T45) + (T44 + T43 * T43/2)* (T41/365))/((T43 * SQRT(T41/365))) -> 3004.914259 | V47: =((T42*V44)-(((T45*EXP((-T44*(T41/365)))*NORMSDIST(T48))))) -> 40.29000003 | W47: T CALL price
B48: =B47-((B43*SQRT(B41/365))) -> 3756.464169 | D48: =((B42*D44)-(((B45*EXP((-B44*(B41/365)))*NORMSDIST(C45))))) -> 59.60000003 | K48: -165.67 | L48: 26.29 | T48: =T47-((T43*SQRT(T41/365))) -> 2958.075409 | V48: =((T42*V44)-(((T45*EXP((-T44*(T41/365)))*NORMSDIST(U45))))) -> 40.29000003
K49: -165.67 | L49: 27.29
H50: =SUM(THEPLOTTER!B1*2)/(THEPLOTTER!B2) -> 48 | K50: -165.67 | L50: 28.29
H51: =IF(H52>0,0,H52) -> 0 | K51: -165.67 | L51: 29.29
H52: =THEPLOTTER!I62+I38 -> 3834.33 | K52: -165.67 | L52: 30.29
K53: -165.67 | L53: 31.29
K54: -165.67 | L54: 32.29
K55: -165.67 | L55: 33.29
I56: FINAL TRADE RISK | K56: -165.67 | L56: 34.29
I57: =ABS(I38/WORKSHEET!$I$41) -> 0.0414175 | K57: -165.67 | L57: 35.29
K58: -165.67 | L58: 36.29
K59: -165.67 | L59: 37.29
I60: FINAL RISK/REWARD | K60: -165.67 | L60: 38.29
I61: =IF(J62<=0,"EXCELLENT",J62) -> 0.04490517248 | K61: -165.67 | L61: 39.29
J62: =ABS(I38/I41) -> 0.04490517248 | K62: -165.67 | L62: 40.29
K63: -165.67 | L63: 41.29
I64: =(THEPLOTTER!$I$62+I38)-(THEPLOTTER!$O$20)-(WORKSHEET!$I$47) -> 3845.82 | K64: -165.67 | L64: 42.29
I65: RESIDUAL BUYING PWR | K65: -165.67 | L65: 43.29
I66: =(THEPLOTTER!$I$70+EXPIRATION!$I$57)/2 -> 0.04136 | K66: -165.67 | L66: 44.29
K67: -165.67 | L67: 45.29
K68: -165.67 | L68: 46.29
K69: -165.67 | L69: 47.29
K70: -165.67 | L70: 48.29
K71: -165.67 | L71: 49.29
K72: -165.67 | L72: 50.29
K73: -165.67 | L73: 51.29
K74: -165.67 | L74: 52.29
K75: -165.67 | L75: 53.29
K76: -165.67 | L76: 54.29
K77: -165.67 | L77: 55.29
K78: -165.67 | L78: 56.29
K79: -165.67 | L79: 57.29
K80: -165.67 | L80: 58.29
K81: -165.67 | L81: 59.29
K82: -165.67 | L82: 60.29
K83: -165.67 | L83: 61.29
K84: -165.67 | L84: 62.29
K85: -165.67 | L85: 63.29
K86: -165.67 | L86: 64.29
K87: -165.67 | L87: 65.29

Sheet NOTES

Sheet DAILY PROFIT CALC
H1: PROFIT CALCULATOR (APPROX) | I1: ENTER ONLY YELLOW
H2: (AT ANY POINT DURING THE TRADE)
B3: =WORKSHEET!B3 -> 67.72
A4: Initial Option Time (Spread) | B4: =WORKSHEET!B4 -> 237 | F4: T= Theoritical | H4: ADX
D5: A
A6: =WORKSHEET!$A$5 -> JAN | B6: =WORKSHEET!B6 -> 237 | D6: =D12+B10-B7-(B9*B10*(B6/365)) -> 4.293832161 | E6: T PUT price | K6: IF OPTION PRICE>$1.00
B7: =I25 -> 67.72 | C7: =B7+1 -> 68.72 | D7: =((B7*D9)-(((B10*EXP((-B9*(B6/365)))*NORMSDIST(B13)))))-((B7*D9)-(((B10*EXP((-B9*((B6-1)/365)))*NORMSDIST(B13))))) -> 0.000432970167 | E7: THETA | H7: VOLATILITY | K7: =WORKSHEET!K7 -> 0 | L7: =B7-B3 -> 0
B8: =WORKSHEET!B8 -> 0.196 | C8: =B8+0.01 -> 0.206 | D8: =1-D9 -> 0.4707441673 | E8: PUT DELTA | K8: =WORKSHEET!K8 -> 1 | L8: =IF((K8>0),IF(J9="PUT",(D6*(K8*100)), IF(J9="SP",(-D6*(K8*100)),IF(J9="SC", (-D12*(K8*100)),(D12*(K8*100))))),0) -> 423.4599284
B9: =WORKSHEET!B9 -> 0.005 | C9: =(LN(B7/B10) + (B9 + C8 * C8/2)* (B6/365))/((C8 * SQRT(B6/365))) -> 0.07769870121 | D9: =NORMSDIST(B12) -> 0.5292558327 | E9: CALL DELTA | J9: =WORKSHEET!J9 -> CALL | K9: =IF(J9="PUT",D8, IF(J9="SP",-D8,IF(J9="SC", -D9,D9))) -> 0.5292558327
B10: =WORKSHEET!B10 -> 68 | C10: =B12-((C8*SQRT(B6/365))) -> -0.09259563225 | D10: =1-(ABS(B12-NORMSDIST(C12))) -> 0.5073939814 | E10: GAMMA | H10: BETA
D11: =ABS(D12-D13) -> 0.2170362468 | E11: VEGA | K11: =WORKSHEET!K11 -> 1 | L11: =IF((K11>0),IF(J12="PUT",(D17*(K11*100)), IF(J12="SP",(-D17*(K11*100)),IF(J12="SC", (-D23*(K11*100)),(D23*(K11*100))))),0) -> -91.04002133
B12: =(LN(B7/B10) + (B9 + B8 * B8/2)* (B6/365))/((B8 * SQRT(B6/365))) -> 0.07339935034 | C12: =(LN(C7/B10) + (B9 + B8 * B8/2)* (B6/365))/((B8 * SQRT(B6/365))) -> 0.1662130852 | D12: =((B7*D9)-(((B10*EXP((-B9*(B6/365)))*NORMSDIST(B13))))) -> 4.234599284 | E12: T CALL price | J12: =WORKSHEET!J12 -> SC | K12: =IF(J12="PUT",D19, IF(J12="SP",-D19,IF(J12="SC", -D20,D20))) -> -0.4680051055 | N12: STRADDLE
B13: =B12-((B8*SQRT(B6/365))) -> -0.08453762339 | D13: =((B7*D9)-(((B10*EXP((-B9*(B6/365)))*NORMSDIST(C10))))) -> 4.451635531 | H13: EARNINGS | N13: CALL RATIO BSPD
K14: =WORKSHEET!K14 -> 0 | L14: =IF((K14>0),IF(J15="PUT",(D29*(K14*100)),IF(J15="SP",(-D29*(K14*100)),IF(J15="SC",(-D35*(K14*100)),(D35*(K14*100))))),0) -> 0 | N14: DEBT SPREAD
J15: =WORKSHEET!J15 -> PUT | K15: =IF(J15="PUT",D31, IF(J15="SP",-D31,IF(J15="SC", -D32,D32))) -> 0 | N15: CREDIT SPREAD
D16: B | H16: VIX | N16: DIAG BTFLY
B17: =WORKSHEET!B20 -> 24 | D17: =D23+B21-B18-(B20*B21*(B17/365)) -> 1.168044049 | E17: T PUT price | K17: =WORKSHEET!K17 -> 0 | L17: =IF((K17>0),IF(J18="PUT",(D40*(K17*100)), IF(J18="SP",(-D40*(K17*100)),IF(J18="SC", (-D46*(K17*100)),(D46*(K17*100))))),0) -> 0 | N17: BUTTERFLY
B18: =B7 -> 67.72 | C18: =B18+1 -> 68.72 | D18: =((B18*D20)-(((B21*EXP((-B20*(B17/365)))*NORMSDIST(B24)))))-((B18*D20)-(((B21*EXP((-B20*((B17-1)/365)))*NORMSDIST(B24))))) -> 0.0004216865256 | E18: THETA | J18: =WORKSHEET!J18 -> PUT | K18: =IF(J18="PUT",D42, IF(J18="SP",-D42,IF(J18="SC", -D43,D43))) -> 0 | N18: IRON BUTTERFLY
B19: =WORKSHEET!B22 -> 0.149 | C19: =B19+0.01 -> 0.159 | D19: =1-D20 -> 0.5319948945 | E19: PUT DELTA | H19: GOVERNMENT RELEASES | N19: PUT
A20: =WORKSHEET!$A$19 -> MAY | B20: =WORKSHEET!B23 -> 0.005 | C20: =(LN(B18/B21) + (B20 + C19 * C19/2)* (B17/365))/((C19 * SQRT(B17/365))) -> -0.0727524667 | D20: =NORMSDIST(B23) -> 0.4680051055 | E20: CALL DELTA | N20: CALL
B21: =WORKSHEET!B24 -> 68 | C21: =B23-((C19*SQRT(B17/365))) -> -0.1210569387 | D21: =1-(ABS(B23-NORMSDIST(C23))) -> 0.3005153804 | E21: GAMMA | N21: SP
D22: =ABS(D23-D24) -> 0.06904306655 | E22: VEGA | H22: PRE-SET STOCK SCREENERS | L22: =SUM(L8:L17)+(L7*K7) -> 332.4199071 | N22: SC
B23: =(LN(B18/B21) + (B20 + B19 * B19/2)* (B17/365))/((B19 * SQRT(B17/365))) -> -0.08028547407 | C23: =(LN(C18/B21) + (B20 + B19 * B19/2)* (B17/365))/((B19 * SQRT(B17/365))) -> 0.303378132 | D23: =((B18*D20)-(((B21*EXP((-B20*(B17/365)))*NORMSDIST(B24))))) -> 0.9104002133 | E23: T CALL price | L23: ENTER INITIAL POSITION
B24: =B23-((B19*SQRT(B17/365))) -> -0.1184926957 | D24: =((B18*D20)-(((B21*EXP((-B20*(B17/365)))*NORMSDIST(C21))))) -> 0.9794432798 | L24: =L22 -> 332.4199071
H25: INITIAL STOCK PRICE | I25: =WORKSHEET!$B$3 -> 67.72 | J25: AVG | K25: =ABS(L35/K26)*0.01 -> 0.06374303109 | P25: ON
H26: TODAY'S CLOSING PRICE | I26: 15.57 | K26: =ABS(I25-I26) -> 52.15 | P26: OFF
D27: C | H27: ENTER TIME LAPSE (Days) | I27: 5 | K27: OFF | L27: PROFIT / LOSS
B28: =WORKSHEET!B31 -> 1e-05 | H28: ENTER VOL DELTA OPT A | I28: 0
B29: =WORKSHEET!B32 -> 1e-05 | D29: =D35+B33-B30-(B32*B33*(B29/365)) -> 2.13271524e-15 | E29: T PUT price | H29: ENTER VOL DELTA OPT B | I29: 0
B30: =WORKSHEET!B33 -> 84.6 | C30: =B30+1 -> 85.6 | D30: =((B30*D32)-(((B33*EXP((-B32*(B29/365)))*NORMSDIST(B36)))))-((B30*D32)-(((B33*EXP((-B32*((B29-1)/365)))*NORMSDIST(B36))))) -> 0.000342468099 | E30: THETA | H30: ENTER VOL DELTA OPT C | I30: 0
B31: =WORKSHEET!B34 -> 0.26 | C31: =B31+0.01 -> 0.27 | D31: =1-D32 -> 0 | E31: PUT DELTA | H31: ENTER VOL DELTA OPT D | I31: 0
B32: =WORKSHEET!B35 -> 0.005 | C32: =(LN(B30/B33) + (B32 + C31 * C31/2)* (B29/365))/((C31 * SQRT(B29/365))) -> 27277.6652 | D32: =NORMSDIST(B35) -> 1 | E32: CALL DELTA | H32: JUNE | K32: =WORKSHEET!$K$26 -> 0.0001 | L32: =L22-L24 -> 0 | N32: PUT
B33: =WORKSHEET!B36 -> 25 | C33: =B35-((C31*SQRT(B29/365))) -> 28326.80613 | D33: =1-(ABS(B35-NORMSDIST(C35))) -> -28324.80617 | E33: GAMMA | H33: Enter Locked in Gains for Month | K33: =WORKSHEET!$K$27 -> 0.0001 | L33: =L82 -> -332.4199071 | N33: =IF(A18="Jun",DATEDIF(TODAY(),"2003/6/20","d"),IF(A18="July",DATEDIF(TODAY(),"2003/7/20","d"),IF(A18="Aug",DATEDIF(TODAY(),"2003/8/20","d"),IF(A18="Sep",DATEDIF(TODAY(),"2003/9/20","d"),IF(A18="Oct",DATEDIF(TODAY(),"2003/10/20","d"),IF(A18="Nov",DATEDIF(TODAY(),"2003/11/20","d"), )))))) -> 0 | P33: JAN
D34: =ABS(D35-D36) -> 0 | E34: VEGA | K34: =WORKSHEET!$K$28 -> 0.0001 | P34: FEB
B35: =(LN(B30/B33) + (B32 + B31 * B31/2)* (B29/365))/((B31 * SQRT(B29/365))) -> 28326.80617 | C35: =(LN(C30/B33) + (B32 + B31 * B31/2)* (B29/365))/((B31 * SQRT(B29/365))) -> 28599.86016 | D35: =((B30*D32)-(((B33*EXP((-B32*(B29/365)))*NORMSDIST(B36))))) -> 59.6 | E35: T CALL price | H35: -0.35 | K35: =WORKSHEET!$K$29 -> 0.0001 | L35: =L32+L33+THEPLOTTER!$I$46 -> -332.4199071 | N35: =IF(A4="Jun",DATEDIF(TODAY(),"2003/6/20","d"),IF(A4="July",DATEDIF(TODAY(),"2003/7/20","d"),IF(A4="Aug",DATEDIF(TODAY(),"2003/8/20","d"),IF(A4="Sep",DATEDIF(TODAY(),"2003/9/20","d"),IF(A4="Oct",DATEDIF(TODAY(),"2003/10/20","d"),IF(A4="Nov",DATEDIF(TODAY(),"2003/11/20","d"), )))))) -> 0 | P35: MAR
A36: =WORKSHEET!$A$30 -> JAN | B36: =B35-((B31*SQRT(B29/365))) -> 28326.80613 | D36: =((B30*D32)-(((B33*EXP((-B32*(B29/365)))*NORMSDIST(C33))))) -> 59.6 | L36: PROFIT / LOSS | P36: APR
D38: D | H38: =IF(I32="Jan",DATEDIF(TODAY(),"2004/1/20","d"),IF(I32="Feb",DATEDIF(TODAY(),"2004/2/20","d"),IF(I32="Mar",DATEDIF(TODAY(),"2004/3/22","d"),IF(I32="Apr",DATEDIF(TODAY(),"2004/4/20","d"),IF(I32="May",DATEDIF(TODAY(),"2004/5/20","d"),IF(I32="Dec",DATEDIF(TODAY(),"2003/12/20","d"),I38 )))))) -> 0 | I38: =IF(I32="Jun",DATEDIF(TODAY(),"2004/6/20","d"),IF(I32="Jul",DATEDIF(TODAY(),"2004/7/20","d"),IF(I32="Aug",DATEDIF(TODAY(),"2004/8/20","d"),IF(I32="Sep",DATEDIF(TODAY(),"2003/9/20","d"),IF(I32="Oct",DATEDIF(TODAY(),"2003/10/20","d"),IF(I32="Nov",DATEDIF(TODAY(),"2003/11/20","d"), )))))) -> 0 | N38: =IF(A35="Jun",DATEDIF(TODAY(),"2003/6/20","d"),IF(A35="July",DATEDIF(TODAY(),"2003/7/20","d"),IF(A35="Aug",DATEDIF(TODAY(),"2003/8/20","d"),IF(A35="Sep",DATEDIF(TODAY(),"2003/9/20","d"),IF(A35="Oct",DATEDIF(TODAY(),"2003/10/20","d"),IF(A35="Nov",DATEDIF(TODAY(),"2003/11/20","d"), )))))) -> 0 | P38: MAY
B39: =WORKSHEET!B41 -> 1e-05 | H39: =IF(I33="Jan",DATEDIF(TODAY(),"2004/1/20","d"),IF(I33="Feb",DATEDIF(TODAY(),"2004/2/20","d"),IF(I33="Mar",DATEDIF(TODAY(),"2004/3/22","d"),IF(I33="Apr",DATEDIF(TODAY(),"2004/4/20","d"),IF(I33="May",DATEDIF(TODAY(),"2004/5/20","d"),IF(I33="Dec",DATEDIF(TODAY(),"2003/12/20","d"),I39 )))))) -> 0 | I39: =IF(I33="Jun",DATEDIF(TODAY(),"2004/6/20","d"),IF(I33="Jul",DATEDIF(TODAY(),"2004/7/20","d"),IF(I33="Aug",DATEDIF(TODAY(),"2004/8/20","d"),IF(I33="Sep",DATEDIF(TODAY(),"2003/9/20","d"),IF(I33="Oct",DATEDIF(TODAY(),"2003/10/20","d"),IF(I33="Nov",DATEDIF(TODAY(),"2003/11/20","d"), )))))) -> 0 | L39: =(-L8-L11-L14) -> -332.4199071 | P39: JUN
B40: =WORKSHEET!B42 -> 1e-05 | D40: =D46+B44-B41-(B43*B44*(B40/365)) -> 2.13271524e-15 | E40: T PUT price | H40: =IF(I34="Jan",DATEDIF(TODAY(),"2004/1/20","d"),IF(I34="Feb",DATEDIF(TODAY(),"2004/2/20","d"),IF(I34="Mar",DATEDIF(TODAY(),"2004/3/22","d"),IF(I34="Apr",DATEDIF(TODAY(),"2004/4/20","d"),IF(I34="May",DATEDIF(TODAY(),"2004/5/20","d"),IF(I34="Dec",DATEDIF(TODAY(),"2003/12/20","d"),I40 )))))) -> 0 | I40: =IF(I34="Jun",DATEDIF(TODAY(),"2004/6/20","d"),IF(I34="Jul",DATEDIF(TODAY(),"2004/7/20","d"),IF(I34="Aug",DATEDIF(TODAY(),"2004/8/20","d"),IF(I34="Sep",DATEDIF(TODAY(),"2003/9/20","d"),IF(I34="Oct",DATEDIF(TODAY(),"2003/10/20","d"),IF(I34="Nov",DATEDIF(TODAY(),"2003/11/20","d"), )))))) -> 0 | N40: =IF(I42="Jun",DATEDIF(TODAY(),"2004/6/20","d"),IF(I42="Jul",DATEDIF(TODAY(),"2004/7/20","d"),IF(I42="Aug",DATEDIF(TODAY(),"2004/8/20","d"),IF(I42="Sep",DATEDIF(TODAY(),"2003/9/20","d"),IF(I42="Oct",DATEDIF(TODAY(),"2003/10/20","d"),IF(I42="Nov",DATEDIF(TODAY(),"2003/11/20","d"), )))))) -> 0 | P40: JUL
B41: =WORKSHEET!B43 -> 84.6 | C41: =B41+1 -> 85.6 | D41: =((B41*D43)-(((B44*EXP((-B43*(B40/365)))*NORMSDIST(B47)))))-((B41*D43)-(((B44*EXP((-B43*((B40-1)/365)))*NORMSDIST(B47))))) -> 0.000342468099 | E41: THETA | H41: =IF(I35="Jan",DATEDIF(TODAY(),"2004/1/20","d"),IF(I35="Feb",DATEDIF(TODAY(),"2004/2/20","d"),IF(I35="Mar",DATEDIF(TODAY(),"2004/3/22","d"),IF(I35="Apr",DATEDIF(TODAY(),"2004/4/20","d"),IF(I35="May",DATEDIF(TODAY(),"2004/5/20","d"),IF(I35="Dec",DATEDIF(TODAY(),"2003/12/20","d"),I41 )))))) -> 0 | I41: =IF(I35="Jun",DATEDIF(TODAY(),"2004/6/20","d"),IF(I35="Jul",DATEDIF(TODAY(),"2004/7/20","d"),IF(I35="Aug",DATEDIF(TODAY(),"2004/8/20","d"),IF(I35="Sep",DATEDIF(TODAY(),"2003/9/20","d"),IF(I35="Oct",DATEDIF(TODAY(),"2003/10/20","d"),IF(I35="Nov",DATEDIF(TODAY(),"2003/11/20","d"), )))))) -> 0 | P41: AUG
B42: =WORKSHEET!B44 -> 0.62 | C42: =B42+0.01 -> 0.63 | D42: =1-D43 -> 0 | E42: PUT DELTA | M42: =MIN($K$43:$K$55) -> 0 | N42: =MIN($L$43:$L$55) -> 0 | P42: SEP
B43: =WORKSHEET!B45 -> 0.005 | C43: =(LN(B41/B44) + (B43 + C42 * C42/2)* (B40/365))/((C42 * SQRT(B40/365))) -> 11690.42799 | D43: =NORMSDIST(B46) -> 1 | E43: CALL DELTA | M43: =MAX($K$43:$K$55) -> 0 | N43: =MAX($L$43:$L$55) -> 0 | P43: OCT
B44: =WORKSHEET!B46 -> 25 | C44: =B46-((C42*SQRT(B40/365))) -> 11878.98317 | D44: =1-(ABS(B46-NORMSDIST(C46))) -> -11876.98328 | E44: GAMMA | L44: \\ | P44: NOV
D45: =ABS(D46-D47) -> 0 | E45: VEGA | M45: =MIN(EXPIRATION!$K$36:$K$48) -> -165.67 | N45: =MIN(EXPIRATION!$L$36:$L$48) -> 17.29 | P45: DEC
B46: =(LN(B41/B44) + (B43 + B42 * B42/2)* (B40/365))/((B42 * SQRT(B40/365))) -> 11878.98328 | C46: =(LN(C41/B44) + (B43 + B42 * B42/2)* (B40/365))/((B42 * SQRT(B40/365))) -> 11993.48979 | D46: =((B41*D43)-(((B44*EXP((-B43*(B40/365)))*NORMSDIST(B47))))) -> 59.6 | E46: T CALL price | M46: =MAX(EXPIRATION!$K$36:$K$48) -> 3689.33 | N46: =MAX(EXPIRATION!$L$36:$L$48) -> 26.29 | P46: Enter Time
A47: =WORKSHEET!$A$40 -> JAN | B47: =B46-((B42*SQRT(B40/365))) -> 11878.98317 | D47: =((B41*D43)-(((B44*EXP((-B43*(B40/365)))*NORMSDIST(C44))))) -> 59.6
B49: =B2 -> 
B50: =B3 -> 67.72
B51: =B4 -> 237 | F51: T= Theoritical
D52: A
B53: =IF(K27="ON",K32,IF(I27=0,(J32-1),(THEPLOTTER!B6-I27))) -> 232 | D53: =D59+B57-B54-(B56*B57*(B53/365)) -> 52.21389041 | E53: T PUT price
B54: =I26 -> 15.57 | C54: =B54+1 -> 16.57 | D54: =((B54*D56)-(((B57*EXP((-B56*(B53/365)))*NORMSDIST(B60)))))-((B54*D56)-(((B57*EXP((-B56*((B53-1)/365)))*NORMSDIST(B60))))) -> 1.055311822e-24 | E54: THETA
B55: =B8+I28 -> 0.196 | C55: =B55+0.01 -> 0.206 | D55: =1-D56 -> 1 | E55: PUT DELTA | I55: Put all Short Options in first 2 Positions
B56: =B9 -> 0.005 | C56: =(LN(B54/B57) + (B56 + C55 * C55/2)* (B53/365))/((C55 * SQRT(B53/365))) -> -8.874480244 | D56: =NORMSDIST(B59) -> 5.028832231e-21 | E56: CALL DELTA | I56: if Possible.
A57: Stock Opening Price | B57: =B10 -> 68 | C57: =B59-((C55*SQRT(B53/365))) -> -9.499670432 | D57: =1-(ABS(B59-NORMSDIST(C59))) -> -8.335435785 | E57: GAMMA
A58: Initial Option Time (Spread) | D58: =ABS(D59-D60) -> 5.675480489e-21 | E58: VEGA | H58: SC= Sold Call
B59: =(LN(B54/B57) + (B56 + B55 * B55/2)* (B53/365))/((B55 * SQRT(B53/365))) -> -9.335435785 | C59: =(LN(C54/B57) + (B56 + B55 * B55/2)* (B53/365))/((B55 * SQRT(B53/365))) -> -8.937080399 | D59: =((B54*D56)-(((B57*EXP((-B56*(B53/365)))*NORMSDIST(B60))))) -> 1.261682458e-21 | E59: T CALL price | H59: SP =Sold Put
A60: =A6 -> JAN | B60: =B59-((B55*SQRT(B53/365))) -> -9.491697876 | D60: =((B54*D56)-(((B57*EXP((-B56*(B53/365)))*NORMSDIST(C57))))) -> 6.937162947e-21 | K60: IF OPTION PRICE>$1.00
K61: =K7 -> 0 | L61: =B54-B50 -> -52.15
K62: =K8 -> 1 | L62: =IF((K62>0),IF(J63="PUT",(D53*(K62*100)), IF(J63="SP",(-D53*(K62*100)),IF(J63="SC", (-D59*(K62*100)),(D59*(K62*100))))),0) -> 1.261682458e-19
J63: =J9 -> CALL | K63: =IF(J63="PUT",D55, IF(J63="SP",-D55,IF(J63="SC", -D56,D56))) -> 5.028832231e-21
K65: =K11 -> 1 | L65: =IF((K65>0),IF(J66="PUT",(D67*(K65*100)), IF(J66="SP",(-D67*(K65*100)),IF(J66="SC", (-D73*(K65*100)),(D73*(K65*100))))),0) -> 0
D66: B | J66: =J12 -> SC | K66: =IF(J66="PUT",D69, IF(J66="SP",-D69,IF(J66="SC", -D70,D70))) -> 0
B67: =IF(K27="ON",K33,IF(I27=0,(J33-1),(THEPLOTTER!B20-I27))) -> 19 | C67: 1900-01-01 | D67: =D73+B71-B68-(B70*B71*(B67/365)) -> 52.41230137 | E67: T PUT price | N67: STRADDLE
A68: 90 Day Treasury Bills | B68: =B54 -> 15.57 | C68: =B68+1 -> 16.57 | D68: =((B68*D70)-(((B71*EXP((-B70*(B67/365)))*NORMSDIST(B74)))))-((B68*D70)-(((B71*EXP((-B70*((B67-1)/365)))*NORMSDIST(B74))))) -> 0 | E68: THETA | K68: =K14 -> 0 | L68: =IF((K68>0),IF(J69="PUT",(D79*(K68*100)),IF(J69="SP",(-D79*(K68*100)),IF(J69="SC",(-D85*(K68*100)),(D85*(K68*100))))),0) -> 0 | N68: CALL RATIO BSPD
B69: =B19+I29 -> 0.149 | C69: =B69+0.01 -> 0.159 | D69: =1-D70 -> 1 | E69: PUT DELTA | J69: =J15 -> PUT | K69: =IF(J69="PUT",D81, IF(J69="SP",-D81,IF(J69="SC", -D82,D82))) ->  | N69: DEBT SPREAD
B70: =B20 -> 0.005 | C70: =(LN(B68/B71) + (B70 + C69 * C69/2)* (B67/365))/((C69 * SQRT(B67/365))) -> -40.61131249 | D70: =NORMSDIST(B73) -> 0 | E70: CALL DELTA | N70: CREDIT SPREAD
B71: =B21 -> 68 | C71: =B73-((C69*SQRT(B67/365))) -> -43.37553872 | D71: =1-(ABS(B73-NORMSDIST(C73))) -> -42.33926204 | E71: GAMMA | K71: =K17 -> 0 | L71: =IF((K71>0),IF(J72="PUT",(D89*(K71*100)), IF(J72="SP",(-D89*(K71*100)),IF(J72="SC", (-D95*(K71*100)),(D95*(K71*100))))),0) -> 0 | N71: DIAG BTFLY
D72: =ABS(D73-D74) -> 0 | E72: VEGA | J72: =J18 -> PUT | K72: =IF(J72="PUT",D91, IF(J72="SP",-D91,IF(J72="SC", -D92,D92))) ->  | N72: BUTTERFLY
B73: =(LN(B68/B71) + (B70 + B69 * B69/2)* (B67/365))/((B69 * SQRT(B67/365))) -> -43.33926204 | C73: =(LN(C68/B71) + (B70 + B69 * B69/2)* (B67/365))/((B69 * SQRT(B67/365))) -> -41.50818049 | D73: =((B68*D70)-(((B71*EXP((-B70*(B67/365)))*NORMSDIST(B74))))) -> 0 | E73: T CALL price | N73: IRON BUTTERFLY
A74: =A20 -> MAY | B74: =B73-((B69*SQRT(B67/365))) -> -43.37325717 | D74: =((B68*D70)-(((B71*EXP((-B70*(B67/365)))*NORMSDIST(C71))))) -> 0 | N74: PUT
N75: CALL
L76: =SUM(L62:L71)+(L61*K61) -> 1.261682458e-19 | N76: SP
L77: ENTER INITIAL POSITION | N77: SC
D78: C | L78: =L24 -> 332.4199071
B79: =IF(K27="ON",K34,IF(I27=0,(J34-1),(THEPLOTTER!B31-I27))) -> -4.99999 | D79: =D85+B83-B80-(B82*B83*(B79/365)) ->  | E79: T PUT price
B80: =B54 -> 15.57 | C80: =B80+1 -> 16.57 | D80: =((B80*D82)-(((B83*EXP((-B82*(B79/365)))*NORMSDIST(B86)))))-((B80*D82)-(((B83*EXP((-B82*((B79-1)/365)))*NORMSDIST(B86))))) ->  | E80: THETA
B81: =B31+I30 -> 0.26 | C81: =B81+0.01 -> 0.27 | D81: =1-D82 ->  | E81: PUT DELTA | L81: PROFIT / LOSS
B82: =B32 -> 0.005 | C82: =(LN(B80/B83) + (B82 + C81 * C81/2)* (B79/365))/((C81 * SQRT(B79/365))) ->  | D82: =NORMSDIST(B85) ->  | E82: CALL DELTA | L82: =L76-L78 -> -332.4199071
B83: =B33 -> 25 | C83: =B85-((C81*SQRT(B79/365))) ->  | D83: =1-(ABS(B85-NORMSDIST(C85))) ->  | E83: GAMMA | N83: PUT
D84: =ABS(D85-D86) ->  | E84: VEGA | N84: =IF(A73="Jun",DATEDIF(TODAY(),"2003/6/20","d"),IF(A73="July",DATEDIF(TODAY(),"2003/7/20","d"),IF(A73="Aug",DATEDIF(TODAY(),"2003/8/20","d"),IF(A73="Sep",DATEDIF(TODAY(),"2003/9/20","d"),IF(A73="Oct",DATEDIF(TODAY(),"2003/10/20","d"),IF(A73="Nov",DATEDIF(TODAY(),"2003/11/20","d"), )))))) -> 0 | P84: JAN
B85: =(LN(B80/B83) + (B82 + B81 * B81/2)* (B79/365))/((B81 * SQRT(B79/365))) ->  | C85: =(LN(C80/B83) + (B82 + B81 * B81/2)* (B79/365))/((B81 * SQRT(B79/365))) ->  | D85: =((B80*D82)-(((B83*EXP((-B82*(B79/365)))*NORMSDIST(B86))))) ->  | E85: T CALL price | P85: FEB
A86: =A36 -> JAN | B86: =B85-((B81*SQRT(B79/365))) ->  | D86: =((B80*D82)-(((B83*EXP((-B82*(B79/365)))*NORMSDIST(C83))))) ->  | N86: =IF(A59="Jun",DATEDIF(TODAY(),"2003/6/20","d"),IF(A59="July",DATEDIF(TODAY(),"2003/7/20","d"),IF(A59="Aug",DATEDIF(TODAY(),"2003/8/20","d"),IF(A59="Sep",DATEDIF(TODAY(),"2003/9/20","d"),IF(A59="Oct",DATEDIF(TODAY(),"2003/10/20","d"),IF(A59="Nov",DATEDIF(TODAY(),"2003/11/20","d"), )))))) -> 0 | P86: MAR
P87: APR
D88: D | L88: =(-L62-L65-L68) -> -1.261682458e-19 | N88: =IF(A86="Jun",DATEDIF(TODAY(),"2003/6/20","d"),IF(A86="July",DATEDIF(TODAY(),"2003/7/20","d"),IF(A86="Aug",DATEDIF(TODAY(),"2003/8/20","d"),IF(A86="Sep",DATEDIF(TODAY(),"2003/9/20","d"),IF(A86="Oct",DATEDIF(TODAY(),"2003/10/20","d"),IF(A86="Nov",DATEDIF(TODAY(),"2003/11/20","d"), )))))) -> 0 | P88: MAY
B89: =IF(K27="ON",K35,IF(I27=0,(J35-1),(THEPLOTTER!B41-I27))) -> -4.99999 | D89: =D95+B93-B90-(B92*B93*(B89/365)) ->  | E89: T PUT price | P89: JUN
B90: =B54 -> 15.57 | C90: =B90+1 -> 16.57 | D90: =((B90*D92)-(((B93*EXP((-B92*(B89/365)))*NORMSDIST(B96)))))-((B90*D92)-(((B93*EXP((-B92*((B89-1)/365)))*NORMSDIST(B96))))) ->  | E90: THETA | N90: =IF(I92="Jun",DATEDIF(TODAY(),"2004/6/20","d"),IF(I92="Jul",DATEDIF(TODAY(),"2004/7/20","d"),IF(I92="Aug",DATEDIF(TODAY(),"2004/8/20","d"),IF(I92="Sep",DATEDIF(TODAY(),"2003/9/20","d"),IF(I92="Oct",DATEDIF(TODAY(),"2003/10/20","d"),IF(I92="Nov",DATEDIF(TODAY(),"2003/11/20","d"), )))))) -> 0 | P90: JUL
B91: =B42+I31 -> 0.62 | C91: =B91+0.01 -> 0.63 | D91: =1-D92 ->  | E91: PUT DELTA | P91: AUG
B92: =B43 -> 0.005 | C92: =(LN(B90/B93) + (B92 + C91 * C91/2)* (B89/365))/((C91 * SQRT(B89/365))) ->  | D92: =NORMSDIST(B95) ->  | E92: CALL DELTA | M92: =MIN($K$43:$K$55) -> 0 | N92: =MIN($L$43:$L$55) -> 0 | P92: SEP
B93: =B44 -> 25 | C93: =B95-((C91*SQRT(B89/365))) ->  | D93: =1-(ABS(B95-NORMSDIST(C95))) ->  | E93: GAMMA | M93: =MAX($K$43:$K$55) -> 0 | N93: =MAX($L$43:$L$55) -> 0 | P93: OCT
D94: =ABS(D95-D96) ->  | E94: VEGA | P94: NOV
B95: =(LN(B90/B93) + (B92 + B91 * B91/2)* (B89/365))/((B91 * SQRT(B89/365))) ->  | C95: =(LN(C90/B93) + (B92 + B91 * B91/2)* (B89/365))/((B91 * SQRT(B89/365))) ->  | D95: =((B90*D92)-(((B93*EXP((-B92*(B89/365)))*NORMSDIST(B96))))) ->  | E95: T CALL price | M95: =MIN(EXPIRATION!$K$36:$K$48) -> -165.67 | N95: =MIN(EXPIRATION!$L$36:$L$48) -> 17.29 | P95: DEC
A96: =A47 -> JAN | B96: =B95-((B91*SQRT(B89/365))) ->  | D96: =((B90*D92)-(((B93*EXP((-B92*(B89/365)))*NORMSDIST(C93))))) ->  | M96: =MAX(EXPIRATION!$K$36:$K$48) -> 3689.33 | N96: =MAX(EXPIRATION!$L$36:$L$48) -> 26.29
B97: =B96-((B92*SQRT(B90/365))) ->  | D97: =((B91*D93)-(((B94*EXP((-B93*(B90/365)))*NORMSDIST(C94))))) -> 

Sheet CALCULATORS
F2: =TODAY() -> 2012-01-27 | I2: =TODAY() -> 2012-01-27
C3: STANDARD DEV | N3: PORTFOLIO BALANCER | O3: (Time Erosion)
C4: Enter last 10 closing prices | F4: =F5/10 -> 1.034681 | I4: EXPIRE DATE | K4: STOCK | L4: BETA | M4: HIST VOLATILITY | N4: IV | O4: #SHARES | P4: TIME REMAINING | Q4: TRADE RISK $ | R4: TRADE RISK % | S4: MAX GAIN $
F5: =(SUM(F6:F15)) -> 10.34681 | I5: 00:00:00 | P5: =IF(I5>0,I5-$F$2,0) -> 0 | Q5: 0
B6: 1 | C6: 25.29 | D6: =SUM(C6:C15) -> 255.27 | E6: =C6-D7 -> -0.237 | F6: =E6^2 -> 0.056169 | I6: 2011-02-15 | L6: 0.5 | M6: 0.3 | N6: 0 | O6: 10 | P6: 30 | Q6: 0 | R6: 0 | S6: 0
B7: 2 | C7: 23.07 | D7: =D6/10 -> 25.527 | E7: =C7-($D$7) -> -2.457 | F7: =E7^2 -> 6.036849 | I7: 00:00:00 | N7: 0 | P7: 0 | Q7: 0 | R7: 0 | S7: 0
B8: 3 | C8: 24.5 | E8: =C8-($D$7) -> -1.027 | F8: 1.054729 | I8: 00:00:00 | N8: 0 | P8: 0 | R8: 0
B9: 4 | C9: 25.25 | E9: -0.277 | F9: 0.076729 | I9: 00:00:00 | N9: 0 | P9: 0 | Q9: 0 | S9: 0
B10: 5 | C10: 26.16 | E10: 0.633 | F10: 0.400689 | I10: 00:00:00 | N10: 0 | P10: 0 | Q10: 0 | R10: 0 | S10: 2
B11: 6 | C11: 25.91 | E11: 0.383 | F11: 0.146689 | I11: 00:00:00 | N11: 0 | P11: 0 | Q11: 0 | S11: 0
B12: 7 | C12: 26.64 | E12: 1.113 | F12: 1.238769 | I12: 00:00:00 | N12: 0 | P12: 0 | Q12: 0
B13: 8 | C13: 25.92 | E13: 0.393 | F13: 0.154449 | I13: 00:00:00 | N13: 0 | P13: 0
B14: 9 | C14: 26.05 | E14: 0.523 | F14: 0.273529 | I14: 00:00:00 | K14: INDEX HDG | N14: 0 | P14: 0
B15: 10 | C15: 26.48 | E15: 0.953 | F15: 0.908209 | I15: 00:00:00 | P15: 0 | S15: =COUNTIF(S5:S14,">0") -> 1
C16: =F16 -> 1.017192705 | D16: 1 Standard Deviation | F16: =SQRT(F4) -> 1.017192705 | Q16: =SUM(Q5:Q15) -> 0 | R16: =SUM(R5:R15) -> 0 | S16: =SUM(S5:S15) -> 3
F19: IMPLIED VOLATILITY CALCULATOR | Q19: STOCK VALUATION CALCULATOR
C20: Enter Exp Month 1 | E20: January | H20: Enter Exp Month 2 | K20: August | M20: Enter Exp Month 3 | O20: April
C21: Enter Stock Price | E21: 8 | H21: Stock Price | K21: =E21 -> 8 | M21: Stock Price | O21: =E21 -> 8 | Q21: Enter share price | S21: 43.8
C22: Enter Strike Price | E22: 5 | H22: Enter Strike Price | K22: 5 | M22: Enter Strike Price | O22: 10 | Q22: Enter Earnings Per share | S22: 3.31
C23: Enter Distance % | E23: 0.19 | H23: Maximium Distance % | K23: =E23 -> 0.19 | M23: Maximium Distance % | O23: =E23 -> 0.19 | Q23: Enter Annual Growth rate | S23: -71
C24: Enter Volume | E24: 70 | H24: Enter Volume | K24: 200 | M24: Enter Volume | O24: 70 | Q24: Enter Industry AVG | S24: 21
S25: .
C26: Distance Factor | E26: =(((ABS(E22-E21)/E21)-E23))^2/E23^2 -> 0.9480609418 | H26: Distance Factor | K26: =(((ABS(K22-K21)/K21)-K23))^2/K23^2 -> 0.9480609418 | M26: Distance Factor | O26: =(((ABS(O22-O21)/O21)-O23))^2/O23^2 -> 0.09972299169 | Q26: MULTIPLE | S26: =S21/S22 -> 13.2326284
C27: Enter Implied Volitality | E27: 0.92 | H27: Enter Implied Volitality | K27: 0.5 | M27: Enter Implied Volitality | O27: 0.69 | S27: =IF(S26>S23,"QUESTIONABLE",IF(S26<S23,"MORE RESEARCH",IF(S26=S23,"MORE RESEARCH") )) -> QUESTIONABLE
C28: Volume Factor | E28: =E24/S32 -> 0.2405498282 | H28: Volume Factor | K28: =K24/S32 -> 0.6872852234 | M28: Volume Factor | O28: =O24/S32 -> 0.2405498282 | Q28: IS IT A VALUE? | S28: =IF(S23>=S24,"MORE RESEARCH",S27) -> QUESTIONABLE
K29: IV= | L29: =((E26*E27*E28)+(K26*K27*K28)+(O26*O27*O28))/((E26*E28)+(K26*K28)+(O26*O28)) -> 0.6110421111 | S29: =IF(S24>15,excellent,S28) -> 
D31: OVERSOLD OR OVERBOUGHT | K31: OEX EXPIRATION WEEK TRADING
C32: Enter Yesterday's Mo | D32: 0 | H32: Enter Close | I32: 674.51 | P32: =R50 -> 0 | Q32: Trade Risk | S32: =SUM(E24+K24+S24) -> 291
C33: Enter Todays advances | D33: 972 | E33: Mo= | F33: =(F34*D32)+F35*D35 -> -139.3 | H33: Wed Close | I33: 674.51 | K33: =I33-I32 -> 0 | M33: =ABS(K33) -> 0 | N33: =MAX(M33:M35) -> 674.51 | P33: =P34-P35 -> 4000 | Q33: Indicated BP | R33: =IF(S50<0,S50/P34,0) -> 
C34: Enter Todays Decliners | D34: 2365 | E34: Yesterday | F34: 0.9 | H34: Thur Close | I34: 655.83 | K34: =I34-I32 -> -18.68 | M34: =ABS(K34) -> 18.68 | P34: =WORKSHEET!$I$41 -> 4000 | Q34: (CAPITALIZATION) | S34: =IF(S37="MKT CORRECTION","ON","OFF") -> OFF
D35: =D33-D34 -> -1393 | E35: Today | F35: 0.1 | H35: EXP Friday | I35: 0 | K35: =I35-I32 -> -674.51 | M35: =ABS(K35) -> 674.51 | N35: =IF(N33>1.5,"POSSIBLE TRADE","") -> POSSIBLE TRADE | P35: =R50*P34 + WORKSHEET!$I$23 -> 0 | Q35: TOT MARGIN REQ
P36: ENTER Commission per Trade
D37: AVERAGE TRUE RANGE | H37: =TODAY() -> 2012-01-27 | L37: PORTFOLIO BALANCER | N37: (DIRECTIONAL) | O37: OFF | P37: 8.95
H38: TRADE DATE | I38: EXPIRE DATE | J38: SECTOR | K38: STOCK | L38: BETA | M38: STANDARD DEV | N38: IV | O38: # SHARES | P38: TIME LAPSE | Q38: TIME REMAINING | R38: TRADE RISK % | S38: P/L RATIO | T38: CORRECTION
C39: Enter the difference between todays High and Low | F39: 12 | H39: 2011-01-31 | I39: 2011-01-31 | J39: Technology | K39: XLF | L39: -1.02 | M39: -1 | N39: 0 | O39: 1 | P39: 1 | Q39: 1 | R39: 0 | S39: -30 | T39: 160
H40: 2011-01-31 | I40: 2012-01-31 | J40: Internet | K40: AKAM | L40: 0.41 | M40: 6.3 | N40: 0 | O40: 1 | P40: 1 | Q40: 1 | R40: 0 | S40: 200 | T40: -200
C41: If the Market Gaps Higher: | H41: 2011-04-04 | I41: 2013-01-31
C42: Enter the difference between todays high and | F42: 50 | H42: 2011-01-31 | I42: 2012-01-31
C43: yesterdays close | H43: 2011-01-31 | I43: 2012-01-31
H44: 2011-01-31 | I44: 2012-01-31
C45: If the Market Gaps Lower: | H45: 2011-01-21 | I45: 2011-01-31
C46: Enter the difference between todays low and | F46: 0 | H46: 2011-01-01 | I46: 2011-01-01
C47: yesterdays close. | H47: 2011-01-01 | I47: 2011-01-01
E48: ATR = | F48: =MAX(F39:F46) -> 50 | H48: 2011-01-01 | I48: 2011-01-01 | L48: 0 | M48: 0 | N48: 0 | O48: 0 | P48: =IF(DAYS360(H48,$F$2)>720,0,(DAYS360(H48,$F$2))) -> 386 | Q48: =IF(H48>0,I48-$F$2,0) -> -391 | S48: 0 | T48: 0
L49: =SUM(L39:L48) -> -0.61 | M49: =SUM(M39:M48) -> 5.3 | N49: 0 | O49: 0 | S49: 0.8 | T49: =COUNTIF(S39:S48,">0") -> 1 | U49: =((T49+S15)*P37)*2 -> 35.8 | V49: =SUM(S39:S48)/(T49-1) -> 
O50: =IF( O37="off", ( (SUM(O39:O49)/O51)*100), ( (SUM(L51:L61)/O51)*100)) -> 100 | R50: =Q51+R16 -> 0 | S50: =S51 ->  | T50: =SUM(S39:S48) -> 170
I51: =IF(J16>0,(MIN(J16,J50)),I50) -> 0 | L51: =IF((SIGN(O39)>0),(O39*1),(IF(SIGN(O39)<0,(O39*1),0))) -> 1 | M51: =IF((SIGN(S39)>0),(S39*-1),(IF(SIGN(S39)<0,(S39*-1),0))) -> 30 | O51: =COUNTIF(O39:O49,">0") -> 2 | Q51: =SUM(R39:R49) -> 0 | R51: =((L40*((N40*S40)+S40))) -> 82 | S51: =IF(S34="OFF",(R52+S16),(R53+(-Q16))) -> 
C52: January | G52: MKT DIRECTION | I52: ETF Beta's Can be found at YAHOO Finance | L52: =IF((SIGN(O40)>0),(O40*1),(IF(SIGN(O40)<0,(O40*1)))) -> 1 | M52: Consumer Discret | N52: =L64 -> 5 | O52: =N64 -> 1 | P52: =P64 -> 9 | Q52: =(SUM((IF(L39<M39,L39,M39)*((IF(S34="ON",(-O39*(S39-(N39*S39))),(O39*(S39+(N39*S39)))))))+((IF(L40<M40,L40,M40)*((IF(S34="ON",(-O40*(S40-(N40*S39))),(O40*(S40+(N40*S40)))))))+((IF(L41<M41,L41,M41)*((IF(S34="ON",((-O41*(S41-(N41*S41)))),(O41*(S41+(N41*S41)))))))+((IF(L42<M42,L42,M42)*((IF(S34="ON",(-O42*(S42-(N42*S42))),(O42*(S42+(N42*S42)))))))+((IF(L43<M43,L43,M43)*((IF(S34="ON",(-O43*(S43-(N43*S43))),(O43*(S43+(N43*S43)))))))+((IF(L44<M44,L44,M44)*((IF(S34="ON",(-O44*(S44-(N44*S44))),(O44*(S44+(N44*S44)))))))+((IF(L45<M45,L45,M45)*((IF(S34="ON",(-O45*(S45-(N45*S45))),(O45*(S45+(N45*S45)))))))+((IF(L46<M46,L46,M46)*((IF(S34="ON",(-O46*(S46-(N46*S46))),(O46*(S46+(N46*S46)))))))+((IF(L47<M47,L47,M47)*((IF(S34="ON",(-O47*(S47-(N47*S47))),(O47*(S47+(N47*S47)))))))+((IF(L48<M48,L48,M48)*((IF(S34="ON",(-O48*(S48-(N48*S48))),(O48*(S48+(N48*S48)))))))))))))))))) ->  | R52: =(SUM((IF(L39>M39,L39,M39)*((IF(S34="ON",(-O39*(S39-(N39*S39))),(O39*(S39+(N39*S39)))))))+((IF(L40>M40,L40,M40)*((IF(S34="ON",(-O40*(S40-(N40*S39))),(O40*(S40+(N40*S40)))))))+((IF(L41>M41,L41,M41)*((IF(S34="ON",((-O41*(S41-(N41*S41)))),(O41*(S41+(N41*S41)))))))+((IF(L42>M42,L42,M42)*((IF(S34="ON",(-O42*(S42-(N42*S42))),(O42*(S42+(N42*S42)))))))+((IF(L43>M43,L43,M43)*((IF(S34="ON",(-O43*(S43-(N43*S43))),(O43*(S43+(N43*S43)))))))+((IF(L44>M44,L44,M44)*((IF(S34="ON",(-O44*(S44-(N44*S44))),(O44*(S44+(N44*S44)))))))+((IF(L45>M45,L45,M45)*((IF(S34="ON",(-O45*(S45-(N45*S45))),(O45*(S45+(N45*S45)))))))+((IF(L46>M46,L46,M46)*((IF(S34="ON",(-O46*(S46-(N46*S46))),(O46*(S46+(N46*S46)))))))+((IF(L47>M47,L47,M47)*((IF(S34="ON",(-O47*(S47-(N47*S47))),(O47*(S47+(N47*S47)))))))+((IF(L48>M48,L48,M48)*((IF(S34="ON",(-O48*(S48-(N48*S48))),(O48*(S48+(N48*S48)))))))))))))))))) ->  | S52: =(Q52) ->  | T52: =Q64 -> 5.75
C53: February | G53: MKT CORRECTION | L53: =IF((SIGN(O41)>0),(O41*1),(IF(SIGN(O41)<0,(O41*1),0))) ->  | M53: Consumer Staples | N53: 8 | O53: 6 | P53: 2 | Q53: =(SUM((IF(L39<M39,L39,M39)*((IF(S34="ON",(-O39*(T39-(N39*T39))),(O39*(T39+(N39*T39)))))))+((IF(L40<M40,L40,M40)*((IF(S34="ON",(-O40*(T40-(N40*T39))),(O40*(T40+(N40*T40)))))))+((IF(L41<M41,L41,M41)*((IF(S34="ON",((-O41*(T41-(N41*T41)))),(O41*(T41+(N41*T41)))))))+((IF(L42<M42,L42,M42)*((IF(S34="ON",(-O42*(T42-(N42*T42))),(O42*(T42+(N42*T42)))))))+((IF(L43<M43,L43,M43)*((IF(S34="ON",(-O43*(T43-(N43*T43))),(O43*(T43+(N43*T43)))))))+((IF(L44<M44,L44,M44)*((IF(S34="ON",(-O44*(T44-(N44*T44))),(O44*(T44+(N44*T44)))))))+((IF(L45<M45,L45,M45)*((IF(S34="ON",(-O45*(T45-(N45*T45))),(O45*(T45+(N45*T45)))))))+((IF(L46<M46,L46,M46)*((IF(S34="ON",(-O46*(T46-(N46*T46))),(O46*(T46+(N46*T46)))))))+((IF(L47<M47,L47,M47)*((IF(S34="ON",(-O47*(T47-(N47*T47))),(O47*(T47+(N47*T47)))))))+((IF(L48<M48,L48,M48)*((IF(S34="ON",(-O48*(T48-(N48*T48))),(O48*(T48+(N48*T48)))))))))))))))))) ->  | R53: =(SUM((IF(L39>M39,L39,M39)*((IF(S34="ON",(-O39*(T39-(N39*T39))),(O39*(T39+(N39*T39)))))))+((IF(L40>M40,L40,M40)*((IF(S34="ON",(-O40*(T40-(N40*T39))),(O40*(T40+(N40*T40)))))))+((IF(L41>M41,L41,M41)*((IF(S34="ON",((-O41*(T41-(N41*T41)))),(O41*(T41+(N41*T41)))))))+((IF(L42>M42,L42,M42)*((IF(S34="ON",(-O42*(T42-(N42*T42))),(O42*(T42+(N42*T42)))))))+((IF(L43>M43,L43,M43)*((IF(S34="ON",(-O43*(T43-(N43*T43))),(O43*(T43+(N43*T43)))))))+((IF(L44>M44,L44,M44)*((IF(S34="ON",(-O44*(T44-(N44*T44))),(O44*(T44+(N44*T44)))))))+((IF(L45>M45,L45,M45)*((IF(S34="ON",(-O45*(T45-(N45*T45))),(O45*(T45+(N45*T45)))))))+((IF(L46>M46,L46,M46)*((IF(S34="ON",(-O46*(T46-(N46*T46))),(O46*(T46+(N46*T46)))))))+((IF(L47>M47,L47,M47)*((IF(S34="ON",(-O47*(T47-(N47*T47))),(O47*(T47+(N47*T47)))))))+((IF(L48>M48,L48,M48)*((IF(S34="ON",(-O48*(T48-(N48*T48))),(O48*(T48+(N48*T48)))))))))))))))))) ->  | S53: =-(R53) ->  | T53: 5
C54: March | L54: =IF((SIGN(O42)>0),(O42*1),(IF(SIGN(O42)<0,(O42*1),0))) -> 0 | M54: Energy | N54: 3 | O54: 9 | P54: 4 | S54: =-(Q53) ->  | T54: 6.25
C55: April | L55: =IF((SIGN(O43)>0),(O43*1),(IF(SIGN(O43)<0,(O43*1)))) -> FALSE | M55: Financials | N55: 1 | O55: 4 | P55: 6 | S55: =(R52) ->  | T55: 3
C56: May | L56: =IF((SIGN(O44)>0),(O44*1),(IF(SIGN(O44)<0,(O44*1),0))) -> 0 | M56: Heallth Care | N56: 9 | O56: 7 | P56: 3 | T56: 6
C57: June | L57: 0 | M57: Industrials | N57: 2 | O57: 2 | P57: 7 | T57: 4.25
C58: July | L58: 0 | M58: Materials | N58: 6 | O58: 5 | P58: 8 | T58: 6.5
C59: August | I59: Sector Performance | L59: 0 | M59: Technology | N59: 3 | O59: 3 | P59: 5 | T59: 3.5
C60: September | I60: 0.93 | L60: 0 | M60: Utilities | N60: 7 | O60: 8 | P60: 1 | T60: 4.75
C61: October | I61: 0.2 | L61: 0 | M61: =IF((SIGN(S49)>0),(S49*-1),(IF(SIGN(S49)<0,(S49*-1),0))) -> -0.8
C62: November | E62: Enter Percentage | I62: 2.78
C63: December | D63: 1Day | E63: 5Day | F63: 1Month | G63: 3Month | H63: 1Year | I63: SUM | J63: RANK (Year) | L63: RANK 3 Month | N63: Rank 1 Month | P63: Rank 5 Day
B64: 1 | C64: Consumer Discret | D64: 1.61 | E64: 3.31 | F64: -6.78 | G64: -3.08 | H64: 25.62 | I64: =SUM(D64:H64) -> 20.68 | J64: =RANK(H64,H64:H72,1) -> 8 | L64: =RANK(G64,G64:G72,1) -> 5 | N64: =RANK(F64,F64:F72,1) -> 1 | P64: =RANK(E64,E64:E72,1) -> 9 | Q64: =SUM(J64:P64)/4 -> 5.75
B65: 2 | C65: Consumer Staples | D65: 0.81 | E65: 0.58 | F65: -3.3 | G65: 4.44 | H65: 20.81 | I65: 23.34 | J65: =RANK(H65,H64:H72,1) -> 4 | L65: =RANK(G65,G64:G72,1) -> 8 | N65: =RANK(F65,F64:F72,1) -> 6 | P65: =RANK(E65,E64:E72,1) -> 2 | Q65: 5
B66: 3 | C66: Energy | D66: 2.05 | E66: 1.62 | F66: -2.2 | G66: -3.91 | H66: 38.12 | I66: 35.68 | J66: =RANK(H66,H64:H72,1) -> 9 | L66: =RANK(G66,G64:G72,1) -> 3 | N66: =RANK(F66,F64:F72,1) -> 9 | P66: =RANK(E66,E64:E72,1) -> 4 | Q66: 6.25
B67: 4 | C67: Financials | D67: 1 | E67: 1.82 | F67: -5.07 | G67: -9.49 | H67: 5.76 | I67: -5.98 | J67: =RANK(H67,H64:H72,1) -> 1 | L67: =RANK(G67,G64:G72,1) -> 1 | N67: =RANK(F67,F64:F72,1) -> 4 | P67: =RANK(E67,E64:E72,1) -> 6 | Q67: 3
B68: 5 | C68: Heallth Care | D68: 0.87 | E68: 1.35 | F68: -3.05 | G68: 6.97 | H68: 23.85 | I68: 29.99 | J68: =RANK(H68,H64:H72,1) -> 5 | L68: =RANK(G68,G64:G72,1) -> 9 | N68: =RANK(F68,F64:F72,1) -> 7 | P68: =RANK(E68,E64:E72,1) -> 3 | Q68: 6
B69: 6 | C69: Industrials | D69: 1.82 | E69: 2.4 | F69: -6.53 | G69: -3.95 | H69: 25.05 | I69: 18.79 | J69: =RANK(H69,H64:H72,1) -> 6 | L69: =RANK(G69,G64:G72,1) -> 2 | N69: =RANK(F69,F64:F72,1) -> 2 | P69: =RANK(E69,E64:E72,1) -> 7 | Q69: 4.25
B70: 7 | C70: Materials | D70: 1.36 | E70: 2.78 | F70: -3.31 | G70: -1.42 | H70: 25.12 | I70: 24.53 | J70: =RANK(H70,H64:H72,1) -> 7 | L70: =RANK(G70,G64:G72,1) -> 6 | N70: =RANK(F70,F64:F72,1) -> 5 | P70: =RANK(E70,E64:E72,1) -> 8 | Q70: 6.5
B71: 8 | C71: Technology | D71: 1.31 | E71: 1.67 | F71: -6.31 | G71: -3.91 | H71: 19.98 | I71: 12.74 | J71: =RANK(H71,H64:H72,1) -> 3 | L71: =RANK(G71,G64:G72,1) -> 3 | N71: =RANK(F71,F64:F72,1) -> 3 | P71: =RANK(E71,E64:E72,1) -> 5 | Q71: 3.5
B72: 9 | C72: Utilities | D72: 0.23 | E72: 0.3 | F72: -2.33 | G72: 1.85 | H72: 18.73 | I72: 18.78 | J72: =RANK(H72,H64:H72,1) -> 2 | L72: =RANK(G72,G64:G72,1) -> 7 | N72: =RANK(F72,F64:F72,1) -> 8 | O72: 1 | P72: =RANK(E72,E64:E72,1) -> 1 | Q72: 4.75
I73: 0 | O73: 2
